Cogmind - Beta 17 @@@ ROGUE MODE // 2026.08.18 @ 22:30:23 Player: KURIIRI Result: Self-destructed Performance ------------- Evolutions (8) 4000 Regions Visited (32) 6400 Robots Destroyed (601) 3005 Value Destroyed (34399) 34399 Prototype IDs (108) 2160 Alien Tech Used (5) 1000 Bonus (51863) 51863 TOTAL SCORE: 102827 Bonus ------- High Alert Combat Kills 3708 Follower Combat Kills 14263 Prayed to X0-1V1 5000 Major X0-1V1 Interference 21050 Hunted by Unchained 500 Entered Garrisons 1800 Used RIF Installer 5500 Scanned by Researcher 500 Pursued by Intercept 500 Friendly Fire -958 Cogmind --------- Core Integrity 719/1175 Matter 73/300 Energy 563/2350 System Corruption 11% Temperature Cool (0) Movement Rolling (124) Ox2 Location -2/Section 7 Parts ------- > --- POWER (2) -------- Hybrid Antimatter Reactor Improved Quantum Reactor > --- PROPULSION (5) --- Centrium Wheel Centrium Wheel Centrium Wheel High-density Centrium Wheel High-density Centrium Wheel > --- UTILITY (13) ----- Huge Storage Unit Experimental Targeting Computer Experimental Core Analyzer SHELL Armor Advanced Remote Force Field Experimental Hacking Suite Relay Coupler [NC] (7) Relay Coupler [Grunt] (5) Relay Coupler [Sentry] (34) Relay Coupler [Hunter] (3) > --- WEAPON (3) ------- Heavy Linear Accelerator Gamma Bomb Array > --- INVENTORY (25) --- Hybrid Antimatter Reactor Centrium Wheel Advanced Matter Compressor (0) Improved Armor Integrity Analyzer Advanced Thermal Defense Suite Improved Point Defense System Advanced System Shield Relay Coupler [NC] (29) Relay Coupler [Sentry] (99) Relay Coupler [Sentry] (23) Drone Bay (1/2) Dimensional Node Initializer Transdimensional Reconstructor High-powered Transdimensional Reconstructor Integrity Redistributor Integrated Thermoelectric Network Cooled Nova Cannon Enhanced Hardcell Cannon Perforator Fusion Bomb Launcher Advanced Remote Datajack Advanced Remote Datajack Multitool Peak State ------------ > --- POWER ------------ Hybrid Antimatter Reactor Graviton Reactor > --- PROPULSION ------- Centrium Wheel Centrium Wheel Centrium Wheel High-density Centrium Wheel High-density Centrium Wheel > --- UTILITY ---------- Huge Storage Unit Experimental Targeting Computer Experimental Core Analyzer Experimental Weapon Cycler SHELL Armor Phase Redirector Experimental Hacking Suite Relay Coupler [NC] Relay Coupler [Grunt] Relay Coupler [Sentry] Relay Coupler [Hunter] > --- WEAPON ----------- Heavy Linear Accelerator Advanced Remote Datajack > --- INVENTORY -------- Hybrid Antimatter Reactor Improved Quantum Reactor Centrium Wheel Advanced Matter Compressor Improved Armor Integrity Analyzer Advanced Thermal Defense Suite Advanced Remote Force Field Advanced System Shield Relay Coupler [Sentry] Relay Coupler [Sentry] Relay Coupler [Proto] Relay Coupler [Proto] Advanced Recalibrator Dimensional Node Initializer High-powered Transdimensional Reconstructor Core Reset Matrix Cooled Nova Cannon Enhanced Hardcell Cannon Perforator Gamma Bomb Array Fusion Bomb Launcher Advanced Remote Datajack Multitool [Rating: 192] Favorites ----------- Power Graviton Reactor Engine Light Ion Engine Power Core Neutrino Core Reactor Graviton Reactor Propulsion Centrium Wheel Treads Light Treads Leg Aluminum Leg Wheel Centrium Wheel Hover Unit Cooled Antigrav System Flight Unit Flight Unit Utility Huge Storage Unit Device Advanced Remote Force Field Storage Huge Storage Unit Processor Experimental Targeting Computer Hackware Relay Coupler [Grunt] Protection Improved Heavy Armor Plating Artifact Phase Redirector Weapon Advanced Remote Datajack Energy Gun Gatling Laser Energy Cannon Cooled Plasma Cannon Ballistic Gun Gauss Rifle Ballistic Cannon Heavy Mass Driver Launcher Heavy Missile Launcher Special Weapon Advanced Remote Datajack Impact Weapon Heavy Mace Slashing Weapon Power Sword Special Melee Weapon Datajack Build | -11 -10 -10 -8 -8 -8 -8 -8 -8 -7 -7 -7 -7 -6 -6 -6 -6 -5 -5 -4 -4 -4 -4 -4 -4 -3 -3 -3 -3 -3 -2 -2 -2 ------- Run | Yrd Mat Sub Mat Gar Mat Gar Mat Gar Fac Was Fac Gar Fac Was Fac Gar Fac Gar Fac Was Fac Gar Fac Arm Res Gar Res Tes Gar Res Qua Sec Slots Evolved 16 | . . . 4 . . . . . 2 . . . 2 . . . 2 . 2 . . . . . 2 . . . . 2 . . Power . | . . . . . . . . . . . . . . . . . . . . . . . . . . . . . . . . . Propulsion 3 | . . . 1 . . . . . . . . . 1 . . . . . 1 . . . . . . . . . . . . . Utility 12 | . . . 2 . . . . . 2 . . . 1 . . . 2 . 1 . . . . . 2 . . . . 2 . . Weapon 1 | . . . 1 . . . . . . . . . . . . . . . . . . . . . . . . . . . . . Parts Attached 363 | 4 8 15 10 11 6 12 4 14 4 3 12 . 16 . 23 13 25 18 4 . 11 11 31 24 9 8 11 10 19 15 11 1 Power 18 | 1 . 2 1 1 . 1 . 1 . 1 . . 1 . 2 . 2 . . . 2 . 1 1 . . . . 1 . . . Engine 6 | 1 . 2 1 1 . . . 1 . . . . . . . . . . . . . . . . . . . . . . . . Core 3 | . . . . . . 1 . . . . . . . . . . 1 . . . 1 . . . . . . . . . . . Reactor 9 | . . . . . . . . . . 1 . . 1 . 2 . 1 . . . 1 . 1 1 . . . . 1 . . . Propulsion 58 | 2 . 4 3 2 2 4 . 2 1 1 1 . 1 . 2 4 3 4 1 . . 3 6 5 2 . 1 3 . . 1 . Treads 32 | 2 . 3 1 1 2 3 . . . 1 . . . . . 3 2 3 . . . 2 6 3 . . . . . . . . Leg 1 | . . . . . . . . 1 . . . . . . . . . . . . . . . . . . . . . . . . Wheel 23 | . . 1 1 1 . 1 . 1 1 . 1 . 1 . 1 1 1 1 1 . . 1 . 2 2 . 1 3 . . 1 . Hover 1 | . . . . . . . . . . . . . . . 1 . . . . . . . . . . . . . . . . . Flight 1 | . . . 1 . . . . . . . . . . . . . . . . . . . . . . . . . . . . . Utility 193 | 1 4 2 2 2 1 5 3 4 3 . 8 . 11 . 11 7 10 11 1 . 5 8 18 15 5 8 7 2 16 12 10 1 Device 72 | 1 2 1 . 1 . 2 . 1 1 . 3 . 3 . 5 2 5 2 . . 3 1 6 7 3 1 4 1 3 7 7 . Storage 10 | . 1 . 1 . . . 1 . 1 . . . 1 . . . 1 1 . . . 1 . . . 1 . . 1 . . . Processor 15 | . . . . . . 1 . . . . 2 . . . . . . . . . 1 1 4 1 . . 1 . 3 1 . . Hackware 66 | . . . . 1 . 1 2 2 . . 2 . 5 . 5 3 1 5 1 . 1 4 5 6 2 6 2 . 6 3 2 1 Protection 29 | . 1 1 1 . 1 1 . 1 1 . 1 . 2 . 1 2 3 3 . . . 1 3 1 . . . 1 3 1 . . Artifact 1 | . . . . . . . . . . . . . . . . . . . . . . . . . . . . . . . 1 . Weapon 94 | . 4 7 4 6 3 2 1 7 . 1 3 . 3 . 8 2 10 3 2 . 4 . 6 3 2 . 3 5 2 3 . . Energy Gun 20 | . . 3 3 1 3 1 . 1 . . . . 1 . 3 . 1 1 . . 1 . . . . . . 1 . . . . Energy Cannon 13 | . . 1 . . . . . . . . 1 . 1 . 3 . 1 . 1 . 1 . 2 1 . . . 1 . . . . Ballistic Gun 15 | . 2 1 . 1 . . . 5 . . . . 1 . . 1 1 . . . 1 . . 1 . . 1 . . . . . Ballistic Cannon 17 | . 2 1 . . . . . . . . . . . . 2 1 2 1 1 . . . 3 . 1 . . 1 1 1 . . Launcher 12 | . . 1 1 2 . . . . . . 2 . . . . . 3 . . . . . . 1 . . . 1 . 1 . . Special Weapon 13 | . . . . 1 . . . 1 . 1 . . . . . . 2 1 . . . . 1 . 1 . 2 1 1 1 . . Impact Weapon 1 | . . . . 1 . . . . . . . . . . . . . . . . . . . . . . . . . . . . Slashing Weapon 2 | . . . . . . 1 . . . . . . . . . . . . . . 1 . . . . . . . . . . . Piercing Weapon . | . . . . . . . . . . . . . . . . . . . . . . . . . . . . . . . . . Special Melee Weapon 1 | . . . . . . . 1 . . . . . . . . . . . . . . . . . . . . . . . . . Unidentified Prototypes 43 | . 1 . 1 . . . . . . . . . 1 . 9 . 2 1 1 . 5 . 3 2 3 . 1 4 4 . 5 . Corrupted Parts 2 | . . . . . . . . . . . . . . . . . 1 . . . . . . . . . . . . 1 . . System Corruption 6 | . . . . . . . . . . . . . . . . . 5 . . . . . . . . . . . . 1 . . Parts Lost 63 | . . 10 1 1 . 1 . 7 . . . . 6 . 3 4 6 6 1 . 3 . 5 . . . . . 3 1 2 3 Power 6 | . . 2 . . . . . . . . . . 1 . 1 . . . . . 1 . . . . . . . . . . 1 Propulsion 14 | . . 4 1 . . . . 4 . . . . 1 . 1 . . 1 . . . . 2 . . . . . . . . . Utility 26 | . . 2 . 1 . 1 . . . . . . 3 . 1 1 3 5 . . 1 . 2 . . . . . 2 . 2 2 Weapon 17 | . . 2 . . . . . 3 . . . . 1 . . 3 3 . 1 . 1 . 1 . . . . . 1 1 . . Highest Loss Streak 4 | . . 4 1 1 . 1 . 2 . . . . 2 . 1 2 4 3 1 . 2 . 3 . . . . . 2 1 1 2 To Critical Strikes 4 | . . . . . . . . . . . . . 1 . . 1 . . . . . . 1 . . . . . 1 . . . Average Backups 20 | 5 9 13 14 18 17 15 16 16 15 21 22 21 22 23 21 20 21 22 21 23 23 22 21 22 21 20 21 22 21 22 23 23 Power 1 | . . . . . . . 1 1 1 1 2 2 1 1 1 2 2 1 1 1 1 2 1 1 2 1 1 1 1 2 2 1 Propulsion 1 | 3 2 2 . 2 4 2 2 1 . . 1 2 1 2 . 3 2 1 1 . . 1 1 . 2 2 1 . 1 . . 1 Utility 10 | . 2 4 4 5 5 6 8 9 9 13 13 11 13 13 12 8 11 13 11 14 14 12 13 13 10 10 10 9 12 12 11 9 Weapon 4 | 1 3 6 8 9 7 4 3 2 2 2 3 3 4 6 5 5 3 4 4 6 5 4 3 4 4 3 4 4 3 4 4 4 Tool/Special . | . . . . . . . . . . . . . . . . . . . . . . . . . . . . . . . . . Unused Backups 85 | . 4 . 1 . 1 3 1 1 . . 3 1 . . 1 4 5 5 4 . . 6 1 6 1 2 3 5 9 2 1 15 Power 3 | . . . . . . . . . . . . . . . . . . 1 . . . . . . . 1 . . . . . 1 Propulsion 11 | . . . . . . 1 . . . . . . . . . . . . 4 . . . . 1 . . . 3 . 2 . . Utility 51 | . 1 . 1 . . . 1 1 . . 1 1 . . . 4 4 4 . . . 6 1 3 1 1 3 . 9 . 1 8 Weapon 12 | . 3 . . . 1 2 . . . . 1 . . . 1 . 1 . . . . . . 2 . . . 1 . . . . Tool/Special 8 | . . . . . . . . . . . 1 . . . . . . . . . . . . . . . . 1 . . . 6 Average Slot Usage (%) 85 | . 100 94 96 94 90 90 99 85 76 84 84 87 86 86 87 82 83 82 83 73 74 79 83 79 80 84 84 85 90 86 85 85 Engine 1 | . 14 13 9 9 9 2 . 3 7 . . . . . . . . . . . . . . . . . . . . . . . Core 1 | . . . . . . 6 9 5 . . . . . . . . 2 5 5 5 4 5 4 . . . . . . . . . Reactor 5 | . . . . . . . . . . 6 7 7 6 6 5 6 5 5 5 5 5 5 5 10 9 9 8 9 9 8 8 8 Treads 6 | . 28 22 13 15 9 9 36 12 . . . . . . . 9 2 5 . . . 8 10 10 . . . . . . . . Wheel 9 | . . 2 10 9 9 8 . 7 7 15 15 10 10 13 15 . 7 4 9 10 10 1 1 . 11 14 15 21 20 20 20 21 Device 7 | . 12 7 17 11 9 12 8 2 7 7 5 7 3 . 3 12 12 3 . . 2 4 3 8 15 10 8 9 9 8 7 3 Storage 6 | . 14 14 9 9 9 9 9 9 7 7 7 7 6 6 6 6 5 5 10 10 7 5 5 5 4 4 4 4 4 4 4 4 Processor 1 | . . . . . . 3 . . . . . . . . . . . . . . . . . . . . 1 4 5 8 8 8 Hackware 19 | . . . . 3 9 2 . 3 7 7 8 19 30 26 25 15 20 22 25 26 25 26 27 26 23 31 30 21 19 21 21 26 Protection 5 | . 1 6 8 9 9 9 9 8 7 7 6 3 1 6 4 7 5 6 9 5 4 6 5 5 5 4 3 4 3 3 3 4 Energy Gun 3 | . . 10 27 21 26 24 23 20 . . . . . . . . 1 2 . . . . . . . . . . . . . . Energy Cannon 3 | . . 1 . . . . . . . . 3 4 10 13 14 12 3 4 5 . 1 4 7 . . . . . 5 . . . Ballistic Gun 3 | . 27 10 . 2 . . . 7 23 23 23 19 10 2 . . . . . . . . . . . . . . . . . . Ballistic Cannon 2 | . . 4 . . . . . . . . . . . . . 1 3 3 3 5 4 5 2 4 4 4 4 4 2 3 4 4 Special Weapon 3 | . . . . . . . . 1 4 4 2 4 4 6 5 4 2 3 5 5 5 5 4 4 4 4 3 3 6 4 3 3 Peak Build Rating 192 | 7 23 24 35 45 45 46 39 56 61 64 62 64 77 59 76 91 96 104 105 98 112 118 120 138 144 141 140 160 177 187 192 192 Average Rating 96 | 6 9 16 32 37 37 42 37 40 53 59 60 59 62 58 59 81 85 95 102 98 101 116 111 120 133 134 133 144 162 181 182 185 On Entrance 83 | 6 7 23 24 34 45 38 39 36 42 55 62 58 64 59 58 76 70 95 102 98 98 109 118 117 118 140 133 139 157 155 184 188 Avg Prop Armor Cover (%) 7 | . . 13 11 11 8 8 . 7 . . . . . . 2 5 5 5 . . . . 7 . . . . . . . . . Naked Turns . | . . . . . . . . . . . . . . . . . . . . . . . . . . . . . . . . . Heaviest Build 203 | 13 36 38 76 69 69 75 77 86 130 134 138 136 139 124 137 149 158 160 151 141 172 173 177 186 201 194 191 202 203 195 195 196 Greatest Support 175 | 40 40 40 26 28 28 83 83 83 44 44 44 44 44 38 38 95 95 114 56 56 56 150 175 175 60 60 76 88 88 88 88 88 Greatest Overweight (x) 8 | . . 1 6 6 2 2 . 3 4 8 3 4 4 3 4 4 5 5 2 2 3 3 5 6 4 3 4 2 2 2 2 2 Average Overweight (x) 2 | . . . 5 4 2 1 . 1 3 2 2 3 2 3 3 1 3 4 2 2 2 1 1 1 3 3 2 1 2 1 1 1 Largest Inventory Capacity 25 | 8 15 15 20 20 20 20 20 20 25 25 25 25 25 25 25 25 25 25 25 25 25 25 25 25 25 25 25 25 25 25 25 25 Average Capacity 23 | 8 13 15 19 20 20 20 20 20 20 25 25 25 25 25 25 25 25 25 25 25 25 25 25 25 25 25 25 25 25 25 25 25 Most Carried 25 | 6 14 15 17 20 20 20 20 20 18 25 25 25 25 25 25 25 25 25 25 24 25 25 25 25 25 25 25 25 25 25 25 25 Average Carried 22 | 5 9 13 14 19 19 18 19 17 15 21 24 23 23 25 22 23 23 23 22 24 24 24 23 24 24 24 24 24 24 23 24 24 Final Capacity 25 | 8 15 15 20 20 20 20 20 20 25 25 25 25 25 25 25 25 25 25 25 25 25 25 25 25 25 25 25 25 25 25 25 25 Final Carried 25 | 3 14 14 17 20 20 20 19 16 18 25 25 25 25 25 22 21 24 25 24 24 24 25 22 25 25 25 23 25 24 25 25 24 Class Distribution -------------------- 56% | Botlord-Tank 12% | Botlord-Gunner 10% | Tank 8% | Mutant 6% | Bothacker-Tank 4% | Scavenger-Tank Dominant Class ---------------- Mutant | -10/Materials Mutant | -10/Subcaves Tank | -8/Materials Tank | -8/Garrison Tank | -8/Materials Tank | -8/Garrison Tank | -8/Materials Bothacker-Tank | -8/Garrison Bothacker-Tank | -7/Factory Bothacker-Tank | -7/Waste Bothacker-Tank | -7/Factory Botlord-Tank | -7/Garrison Botlord-Tank | -6/Factory Botlord-Tank | -6/Waste Botlord-Tank | -6/Factory Botlord-Tank | -6/Garrison Botlord-Tank | -5/Factory Botlord-Tank | -5/Garrison Botlord-Tank | -4/Factory Botlord-Tank | -4/Waste Botlord-Tank | -4/Factory Botlord-Tank | -4/Garrison Botlord-Tank | -4/Factory Botlord-Tank | -4/Armory Botlord-Tank | -3/Research Botlord-Tank | -3/Garrison Botlord-Tank | -3/Research Botlord-Tank | -3/Testing Botlord-Gunner | -3/Garrison Botlord-Gunner | -2/Research Botlord-Gunner | -2/Quarantine Botlord-Gunner | -2/Section 7 Resources | -11 -10 -10 -8 -8 -8 -8 -8 -8 -7 -7 -7 -7 -6 -6 -6 -6 -5 -5 -4 -4 -4 -4 -4 -4 -3 -3 -3 -3 -3 -2 -2 -2 ----------- Run | Yrd Mat Sub Mat Gar Mat Gar Mat Gar Fac Was Fac Gar Fac Was Fac Gar Fac Gar Fac Was Fac Gar Fac Arm Res Gar Res Tes Gar Res Qua Sec Matter Collected 35487 | 352 230 666 225 741 530 421 429 750 363 224 585 567 815 . 1430 448 2053 1889 903 . 229 2020 2350 2199 1319 1331 3095 2133 2027 1618 1437 2108 Remotely . | . . . . . . . . . . . . . . . . . . . . . . . . . . . . . . . . . Salvage Created 25518 | 261 397 403 389 970 526 1071 980 689 297 67 649 391 1172 . 1046 1188 1545 1721 526 . 447 1078 1334 654 538 647 1224 1365 850 813 1096 1184 Parts 1200 | 29 25 32 15 46 29 39 49 33 8 . 37 30 72 . 60 33 77 76 17 . 13 29 54 19 36 24 57 69 48 29 58 57 Haulers Intercepted 15 | . 2 . 1 . 3 . 1 . . . 1 . . . 1 . 1 . 1 . . . 1 . . . 2 1 . . . . Recyclers Shooed 12 | . . . . . 1 . 2 . . . . . 2 . 1 . 2 . . . . . 2 . . . 1 1 . . . . Parts Field Recycled . | . . . . . . . . . . . . . . . . . . . . . . . . . . . . . . . . . Retrieved Matter . | . . . . . . . . . . . . . . . . . . . . . . . . . . . . . . . . . Parts Self-Destructed 15 | . . 15 . . . . . . . . . . . . . . . . . . . . . . . . . . . . . . Prevented . | . . . . . . . . . . . . . . . . . . . . . . . . . . . . . . . . . Parts Restored . | . . . . . . . . . . . . . . . . . . . . . . . . . . . . . . . . . Kills | -11 -10 -10 -8 -8 -8 -8 -8 -8 -7 -7 -7 -7 -6 -6 -6 -6 -5 -5 -4 -4 -4 -4 -4 -4 -3 -3 -3 -3 -3 -2 -2 -2 ------- Run | Yrd Mat Sub Mat Gar Mat Gar Mat Gar Fac Was Fac Gar Fac Was Fac Gar Fac Gar Fac Was Fac Gar Fac Arm Res Gar Res Tes Gar Res Qua Sec Combat Hostiles Destroyed 457 | . 8 12 6 17 5 28 23 25 5 . 12 8 16 . 19 11 29 29 8 . 9 13 15 18 10 16 24 18 16 16 21 20 Guns 118 | . 8 8 3 10 5 26 13 21 5 . 6 6 3 . . 1 2 1 . . . . . . . . . . . . . . Cannons 251 | . . 3 . . . . . 1 . . 2 1 13 . 13 10 16 18 4 . 6 13 15 17 10 14 24 10 13 13 16 19 AOE 76 | . . 1 3 6 . 2 10 3 . . 4 . . . 6 . 11 8 4 . 3 . . . . 2 . 5 1 3 3 1 Classes Destroyed 26 | 3 5 2 1 1 1 3 . 1 . . 1 . 1 . 3 . . 1 . . . . . . 1 . . 1 1 . . . Worker 39 | 2 1 . . . 1 . 2 . 1 . 1 . 2 . 2 . 2 . 3 . . . 3 . 3 . 3 7 . 2 3 1 Builder 22 | . . . 1 . 1 . . . . . 1 . . . 3 . 4 . 2 . . . 5 . . . 2 2 . . 1 . Tunneler 12 | 8 . . . . 1 . 1 . . . . . 1 . . . 1 . . . . . . . . . . . . . . . Hauler 15 | . 2 . 1 . 3 . 1 . . . 1 . . . 1 . 1 . 1 . . . 1 . . . 2 1 . . . . Recycler 19 | 1 . . 2 . . . . . 2 . 2 . 1 . 1 . 2 . 1 . 1 . 2 . . . 2 1 . . 1 . Mechanic 1 | . . . . . . . . . . . . . . . . . . . . . . . . . 1 . . . . . . . Operator 5 | . . . . . 1 . 1 . . . . . 1 . . . . . . . . . . . . . . 1 . . 1 . Turret 1 | . . 1 . . . . . . . . . . . . . . . . . . . . . . . . . . . . . . Watcher 18 | . 1 . 1 . 1 2 2 . . . . . 2 . 3 . 3 . . . . . 1 . . . . . . . 1 1 Swarmer 89 | . 3 2 4 4 . 4 4 7 5 . 4 3 2 . . 1 8 5 4 . 4 1 . 1 3 5 3 3 1 4 4 . Cutter 5 | . . . . . . . . . . . . . . . . . . 2 . . . . . . . . . . 3 . . . Grunt 131 | . 4 3 2 10 1 14 14 9 . . 2 . 4 . 3 5 4 11 . . 2 4 4 6 1 6 1 3 4 4 . 10 Brawler 10 | . . . . . . 1 1 1 . . . 1 . . . 2 . . . . . 1 . 1 . . . . 1 1 . . Duelist 6 | . . . . . . . . . . . 1 1 . . 1 . . . . . . 2 . . . . . . . 1 . . Protector 2 | . . . . . . . . . . . . . . . 2 . . . . . . . . . . . . . . . . . Researcher 5 | . . . . . . . . . . . . . . . . . . . . . . . . . . . . 3 . . . 2 Sentry 38 | . . . . 3 4 4 5 1 . . 2 . 2 . . 1 1 . . . . . 2 6 1 5 . . . . . 1 Demolisher 2 | . . . . . . . . 2 . . . . . . . . . . . . . . . . . . . . . . . . Specialist 3 | . . . . . . . . . . . . . . . 2 . . . . . . . . . . . . . . 1 . . Hunter 36 | . . . . . . 2 . . . . 1 . 6 . 4 2 4 3 1 . . 1 1 . . 1 1 4 1 . 4 . Programmer 110 | . . . . . . 3 . 5 . . 2 3 2 . 3 . 10 8 2 . 3 3 8 4 5 . 15 8 4 4 11 7 Heavy 10 | . . . . . . . . . . . . . . . 4 . 2 1 . . . . . . . . 3 . . . . . Behemoth 6 | . . . . . . . . . . . . . 1 . . . . . 1 . . 1 . . . . 1 . . 1 . 1 Armor Guard 1 | . . . . . . . . . . . . . . . . . . . . . . . . 1 . . . . . . . . S7 Guard 1 | . . . . . . . . . . . . . . . . . . . . . . . . . . . . . . . . 1 Executioner 2 | . . . . . . . . . . . . . . . . . . . . . . . . . . . . . 2 . . . Artisan 2 | . . 2 . . . . . . . . . . . . . . . . . . . . . . . . . . . . . . Subdweller 8 | . 1 7 . . . . . . . . . . . . . . . . . . . . . . . . . . . . . . Thug 3 | . . . . . . . . . . . . 1 . . . . . . . . . . . . . . . . . . 2 . Martyr 1 | . . . . . . . . . . . 1 . . . . . . . . . . . . . . . . . . . . . Best Kill Streak 13 | 2 3 3 5 9 4 13 6 7 3 . 4 3 3 . 12 3 9 5 6 . 4 4 5 3 5 5 5 10 7 7 7 8 Combat Bots Only 13 | . 3 3 4 9 2 13 4 7 3 . 4 3 3 . 6 3 4 5 5 . 4 4 3 3 3 5 4 5 7 5 5 4 Max Kills in Single Turn 6 | 1 2 1 4 3 1 2 3 2 1 . 2 2 2 . 5 2 4 2 6 . 3 1 4 1 2 2 1 3 1 3 2 1 Gunslinging 1 | . 1 . . 1 . 1 . 1 . . . . . . . . . . . . . . . . . . . . . . . . Exploded 4 | . . 1 3 3 . 1 2 1 . . 2 . . . 4 . 4 2 4 . 3 . . . . 2 . 2 1 3 1 1 Melee . | . . . . . . . . . . . . . . . . . . . . . . . . . . . . . . . . . Uniques/NPCs Destroyed . | . . . . . . . . . . . . . . . . . . . . . . . . . . . . . . . . . Combat | -11 -10 -10 -8 -8 -8 -8 -8 -8 -7 -7 -7 -7 -6 -6 -6 -6 -5 -5 -4 -4 -4 -4 -4 -4 -3 -3 -3 -3 -3 -2 -2 -2 -------- Run | Yrd Mat Sub Mat Gar Mat Gar Mat Gar Fac Was Fac Gar Fac Was Fac Gar Fac Gar Fac Was Fac Gar Fac Arm Res Gar Res Tes Gar Res Qua Sec Hostile Shots Fired 2663 | . 33 94 14 61 20 100 67 96 44 . 127 20 122 . 81 91 250 137 55 . 45 75 192 123 36 62 154 92 166 54 94 158 Missed 853 | . 7 35 3 18 3 34 20 28 10 . 37 4 35 . 35 35 106 34 24 . 18 17 51 32 14 20 53 36 49 19 33 43 Hits 1810 | . 26 59 11 43 17 66 47 68 34 . 90 16 87 . 46 56 144 103 31 . 27 58 141 91 22 42 101 56 117 35 61 115 Melee 16 | . . . . 3 . . . 1 . . . . . . 1 . . 3 . . 1 3 . . . . . . 4 . . . Projectile 1794 | . 26 59 11 40 17 66 47 67 34 . 90 16 87 . 45 56 144 100 31 . 26 55 141 91 22 42 101 56 113 35 61 115 AOE 24 | . . . . . . . . 8 . . . 3 . . . . 6 . 1 . . . 1 1 . . . . 3 1 . . Critical Strikes 88 | . . . 2 4 . 2 1 . 1 . . 1 4 1 1 4 7 11 . . 2 4 12 1 1 3 7 8 4 4 1 2 Part Disruptions 2 | . . . . . . . . . . . 1 . . . . . . . . . . . 1 . . . . . . . . . Damage Taken 26954 | . 226 1377 119 603 188 739 736 1126 354 . 669 290 1067 20 1192 612 2234 2270 849 . 705 1015 2500 1195 313 477 1149 646 1101 824 659 1699 Core 2389 | . 30 159 23 68 31 144 129 139 36 . 77 24 130 20 147 34 190 149 112 . 31 114 64 32 6 68 75 41 36 43 77 160 Absorbed by Shields 9176 | . 18 . 48 55 63 189 134 . 97 . 126 112 109 . . . 1062 558 . . 52 309 406 973 234 376 1093 595 786 639 473 669 Reduced by Siege Mode 325 | . . . . . . . . . . . . . . . . . 54 49 . . . 27 120 75 . . . . . . . . Ignored by Resistances 4663 | . . . . 25 19 33 18 17 56 . 71 12 118 . 211 168 425 157 72 . 15 47 172 146 201 248 975 234 633 98 93 399 Regen/Repaired (Parts) 6991 | . . . . . 204 . . 68 . . 322 . . . 507 . 644 . 711 . 300 . 879 306 57 84 1035 100 132 658 370 614 Core Remaining (%) 60 | 100 . 9 . . . . . 18 . . . 67 . . . 77 . 75 . . . . . 59 . . . . 77 . . . Volleys Fired 2611 | 56 37 110 23 103 25 48 44 54 11 2 43 28 89 10 84 89 141 167 46 6 47 122 187 140 76 106 201 99 145 86 74 112 Largest 4 | 2 2 2 3 3 3 3 3 4 3 3 4 4 4 2 3 3 3 4 2 1 2 1 3 2 1 1 1 1 2 1 1 1 Hottest 288 | 40 46 120 176 179 240 240 240 240 88 88 168 168 246 115 238 238 200 281 170 10 100 105 288 186 68 68 81 150 150 150 80 100 Shots Fired 3609 | 112 74 150 60 218 71 130 94 102 33 6 115 65 178 11 136 128 175 231 54 6 47 122 224 151 76 107 207 103 146 87 76 114 Gun 1159 | 112 74 78 59 191 71 128 80 83 33 6 84 49 56 . . 3 21 30 . . 1 . . . . . . . . . . . Cannon 1707 | . . 64 . . . . . . . . 17 13 90 2 102 88 122 151 33 . 21 85 150 129 36 81 151 79 109 50 59 75 Launcher 125 | . . 8 1 7 . 2 14 8 . . 4 . . 2 6 . 16 21 3 . 2 . . . . 2 . 8 5 2 6 8 Special 618 | . . . . 20 . . . 11 . . 10 3 32 7 28 37 16 29 18 6 23 37 74 22 40 24 56 16 32 35 11 31 Kinetic 1529 | 112 74 95 1 50 . . . 11 33 6 84 49 54 . 4 8 86 50 13 . 19 36 59 112 36 81 149 77 51 45 59 75 Thermal 1306 | . . 47 59 161 71 128 80 61 . . 17 13 90 2 98 92 57 140 20 . 3 57 75 7 . . . 2 25 1 . . Explosive 63 | . . 8 . 7 . 2 14 8 . . 4 . . 2 6 . 5 . . . . . . . . 2 . . 1 2 2 . Electromagnetic 139 | . . . . . . . . 11 . . . . 2 . . . 11 21 3 . 2 . 16 10 . . 2 8 37 4 4 8 Robot Hit Streak 34 | 9 8 16 5 26 11 14 12 14 7 7 20 10 12 5 14 34 8 15 16 12 17 31 13 18 7 15 17 14 7 17 19 17 Robot Miss Streak 7 | 4 4 3 4 3 6 7 5 6 6 . 5 4 4 1 6 3 5 4 2 . 3 3 4 2 3 2 4 5 6 2 3 5 Penetration Max 1 | . . . . . . . . . . . 1 . 1 . . . . 1 . . . 1 1 1 . . . . 1 1 . . Secondary Targets 23 | . 1 . . 3 . 12 2 4 1 . . . . . . . . . . . . . . . . . . . . . . . Max Gunslinging Chain 2 | . 1 . . 1 . 2 1 1 1 . . . . . . . . . . . . . . . . . . . . . . . Shots Hit Robots 2264 | 67 43 57 33 174 53 108 70 71 20 6 65 26 117 7 78 106 101 137 33 6 28 80 134 101 45 59 128 51 71 62 48 79 Core Hits 1050 | 21 18 29 15 65 25 76 70 52 8 1 27 12 43 . 56 38 53 47 15 . 12 29 33 25 19 21 28 55 36 26 36 59 Critical Kills 8 | . . . . . . . . . . . . . 3 . . . . . . . . 1 1 . . . . 1 2 . . . Critical Parts Destroyed 20 | 1 . . 1 1 . . . . 1 . 3 1 2 . . . . . . . . . . . . . . . 6 . . 4 Critical Strikes 110 | 1 . . 1 5 3 . . . 1 . 3 1 6 . 1 . 6 5 . . 2 3 11 9 2 2 9 6 9 1 7 16 Burn 7 | . . . . 4 3 . . . . . . . . . . . . . . . . . . . . . . . . . . . Meltdown 2 | . . . . . . . . . . . . . . . . . . . . . . 1 1 . . . . . . . . . Destroy 35 | 1 . . 1 1 . . . . 1 . 3 1 6 . . . . . . . . . . . . . . 1 8 . . 12 Blast 66 | . . . . . . . . . . . . . . . 1 . 6 5 . . 2 2 10 9 2 2 9 5 1 1 7 4 Melee Attacks 80 | . . . . 14 3 15 2 2 6 . . 2 . . . 32 4 . . . . . . . . . . . . . . . Impact 25 | . . . . 14 3 8 . . . . . . . . . . . . . . . . . . . . . . . . . . Slashing 53 | . . . . . . 7 . 2 6 . . 2 . . . 32 4 . . . . . . . . . . . . . . . Piercing . | . . . . . . . . . . . . . . . . . . . . . . . . . . . . . . . . . Sneak Attacks 4 | . . . . . . . . . 4 . . . . . . . . . . . . . . . . . . . . . . . Combat Hostiles . | . . . . . . . . . . . . . . . . . . . . . . . . . . . . . . . . . Follow-up Attacks . | . . . . . . . . . . . . . . . . . . . . . . . . . . . . . . . . . Damage Inflicted 91333 | 490 540 1484 860 3503 1017 3056 2571 2214 729 156 1707 639 2241 715 4523 3453 5671 5704 1999 . 1089 2810 4794 6003 2280 3317 8306 4399 3415 3234 3939 4475 Guns 15025 | 490 532 711 625 2470 973 2768 1430 1462 376 156 1115 529 447 . . 52 417 472 . . . . . . . . . . . . . . Cannons 57689 | . . 277 . . . 82 . 44 . . 184 110 1782 57 1944 1406 3996 3987 987 . 860 2750 4504 6003 1467 3139 8258 3197 3062 2618 3252 3723 Explosions 15884 | . . 496 235 902 . 206 1141 708 . . 377 . 12 658 2579 52 1258 1172 1012 . 229 . 246 . 813 178 . 1202 353 616 687 752 Melee 2262 | . . . . . 22 . . . 353 . . . . . . 1887 . . . . . . . . . . . . . . . . Ramming 153 | . 8 . . . 22 . . . . . 31 . . . . . . . . . . . 44 . . . 48 . . . . . Kinetic 50570 | 490 532 570 235 363 . 82 . 139 376 156 1115 529 434 . 111 155 3389 1930 648 . 829 1749 3014 5788 1467 3139 8179 3197 2436 2543 3252 3723 Thermal 23926 | . . 418 625 2238 973 2768 1430 1285 . . 184 110 1763 57 2526 1411 1138 2602 1185 . 31 1061 1250 105 422 . . 55 193 . . 96 Explosive 8231 | . . 496 . 902 . 206 980 655 . . 377 . . 658 1886 . 447 . . . 86 . . . . 178 . 131 158 616 138 317 Electromagnetic 6191 | . . . . . . . 161 135 . . . . 44 . . . 697 1172 166 . 143 . 486 110 391 . 79 1016 628 75 549 339 Impact 22 | . . . . . 22 . . . . . . . . . . . . . . . . . . . . . . . . . . . Slashing 2240 | . . . . . . . . . 353 . . . . . . 1887 . . . . . . . . . . . . . . . . Piercing . | . . . . . . . . . . . . . . . . . . . . . . . . . . . . . . . . . Highest Corruption 39 | . . 9 . 2 2 15 29 24 . . 1 4 . 12 12 6 15 8 1 10 18 18 20 25 2 2 22 25 39 4 9 11 Average Corruption 11 | . . 9 . 2 2 7 20 22 . . 1 2 . 6 4 4 10 3 1 10 17 18 7 22 2 2 9 23 30 3 6 9 Corruption Purged 19 | . . . . . . . . . . . . . . . 12 . . 7 . . . . . . . . . . . . . . Corruption Blocked . | . . . . . . . . . . . . . . . . . . . . . . . . . . . . . . . . . Effects 992 | . . 42 . 19 17 27 44 62 . . 2 10 . 4 26 13 41 15 . 2 39 79 94 93 4 15 93 74 70 23 44 40 Message Errors 262 | . . 8 . 4 9 6 9 20 . . 1 2 . 3 5 2 13 6 . . 11 17 23 22 . 2 29 17 21 8 12 12 Matter Fused 218 | . . 16 . 2 1 7 10 11 . . 1 3 . . 7 3 7 3 . . 7 21 23 21 . 2 21 18 9 8 6 11 Heat Flow Errors 95 | . . 4 . 3 1 1 7 6 . . . . . . 2 2 4 3 . . 3 10 5 12 . 2 6 6 6 1 7 4 Energy Discharges 113 | . . 6 . 2 2 3 1 7 . . . 2 . . 4 3 6 . . 1 7 10 10 15 1 3 8 7 6 1 6 2 Parts Rejected 11 | . . . . . . . . 1 . . . . . . . . 1 . . 1 1 1 . 1 . . 1 2 1 . 1 . Parts Fused 13 | . . 1 . . . 1 . . . . . . . . 3 . . . . . . . 2 1 1 . 4 . . . . . Data Loss (minor) 108 | . . 4 . 5 1 5 6 5 . . . . . . 4 . 3 1 . . 3 8 13 7 2 4 9 9 7 3 5 4 Data Loss (major) 59 | . . 2 . . 1 2 3 4 . . . 1 . 1 . 3 2 1 . . 4 7 8 4 . . 3 2 6 . 4 1 Misfires 47 | . . 1 . 3 . . 3 3 . . . 2 . . . . . . . . 1 2 5 7 . 1 5 6 2 1 2 3 Alerts 18 | . . . . . . . . . . . . . . . . . 3 1 . . . 1 1 . . . 6 . 2 1 1 2 Misdirections 9 | . . . . . . . . . . . . . . . . . . . . . . . . . . . . 5 4 . . . Weapon Failures 39 | . . . . . 2 2 5 5 . . . . . . 1 . 2 . . . 2 2 4 3 . 1 1 2 6 . . 1 Overload Shots 14 | . . . . . . . . . . . . . 4 . 2 1 3 . 1 . . . . . . . . 1 1 1 . . Effects 2 | . . . . . . . . . . . . . . . . 1 . . 1 . . . . . . . . . . . . . Energy Bleed 1 | . . . . . . . . . . . . . . . . . . . 1 . . . . . . . . . . . . . Short Circuit 1 | . . . . . . . . . . . . . . . . 1 . . . . . . . . . . . . . . . . Overflow Damage 6851 | . . 170 . 34 . 7 80 . 144 . 24 . 75 . 214 84 565 233 307 . 90 201 718 420 100 110 1255 648 342 131 569 330 Projectiles 5783 | . . . . . . 7 . . . . . . 75 . 89 84 521 212 82 . 56 201 643 420 33 110 1255 636 338 131 560 330 Explosions 910 | . . 170 . 34 . . 80 . . . 13 . . . 125 . 44 21 225 . 34 . 72 . 67 . . 12 4 . 9 . Melee 158 | . . . . . . . . . 144 . 11 . . . . . . . . . . . 3 . . . . . . . . . Knockbacks 178 | . . 3 . . . 1 . . . . . . . . 1 . 19 10 . . 1 11 23 8 3 4 29 18 12 6 16 13 Impact 1 | . . . . . . . . . . . . . . . . . . . . . . . . . . . 1 . . . . . Kinetic 163 | . . 3 . . . 1 . . . . . . . . 1 . 17 10 . . 1 9 21 8 2 4 26 16 12 5 14 13 Secondary 14 | . . . . . . . . . . . . . . . . . 2 . . . . 2 2 . 1 . 2 2 . 1 2 . Self-Inflicted Damage 1174 | . . 210 3 27 11 . 86 14 . . 15 . . . . . 46 132 30 . 181 . . . 99 . 23 236 . . . 61 Shots 30 | . . 1 1 1 . . 2 1 . . . . . . . . 3 6 1 . 2 . . . 2 . . 5 . . . 5 Rammed 10 | . 2 . . . 1 . . . . . 1 . . . . . . . . . . . 4 . . . 2 . . . . . Targets Rammed 11 | . 2 . . . 1 . . . . . 1 . . . . . . . . . . . 5 . . . 2 . . . . . Kicked . | . . . . . . . . . . . . . . . . . . . . . . . . . . . . . . . . . Crushed 1 | . . . . . . . . . . . . . . . . . . . . . . . 1 . . . . . . . . . Highest Temperature 472 | . 12 189 433 351 312 381 403 450 . . 257 245 117 . 399 152 250 472 54 . 244 345 440 326 77 247 279 223 214 273 304 169 Average Temperature 92 | . 7 85 133 121 94 102 131 161 . . 87 78 22 . 85 55 86 188 22 . 82 120 93 91 34 59 55 54 50 43 82 52 Received Heat Transfer 3826 | . 66 267 85 215 51 247 281 162 41 . 175 . 140 27 141 230 155 270 48 . 57 274 100 118 6 84 22 33 80 40 12 399 Effects 32 | . . . 6 2 . 1 1 3 . . . . . . . . . 6 . . . 3 3 3 . 3 1 . . . . . Shutdowns 4 | . . . 1 . . . . . . . . . . . . . . 2 . . . . 1 . . . . . . . . . Energy Bleed 6 | . . . . 2 . . 1 . . . . . . . . . . 1 . . . 1 . 1 . . . . . . . . Interference 10 | . . . . . . 1 . 3 . . . . . . . . . 1 . . . 1 . . . 3 1 . . . . . Matter Decay 2 | . . . . . . . . . . . . . . . . . . 1 . . . 1 . . . . . . . . . . Short Circuit 1 | . . . . . . . . . . . . . . . . . . . . . . . . 1 . . . . . . . . Damage (minor) 5 | . . . 1 . . . . . . . . . . . . . . 1 . . . . 2 1 . . . . . . . . Damage (major) 4 | . . . 4 . . . . . . . . . . . . . . . . . . . . . . . . . . . . . Siege Activations 13 | . . . . . . . . . . . . . . . . . 3 1 . . . 2 1 6 . . . . . . . . Total Turns 274 | . . . . . . . . . . . . . . . . . 70 37 . . . 28 29 110 . . . . . . . . Longest Duration 42 | . . . . . . . . . . . . . . . . . 28 37 . . . 16 29 42 . . . . . . . . Martial Activations . | . . . . . . . . . . . . . . . . . . . . . . . . . . . . . . . . . Shielding Activations . | . . . . . . . . . . . . . . . . . . . . . . . . . . . . . . . . . Robots Disrupted 1 | . . . . . . . . . . . . . . . . . . . . . . . . . . . . . 1 . . . Combat Hostiles 1 | . . . . . . . . . . . . . . . . . . . . . . . . . . . . . 1 . . . Robots Corrupted 11 | . . . . . . . . . . . 1 . . . . . . 2 . . . . . 1 . . . 3 2 . 2 . Combat Hostiles 10 | . . . . . . . . . . . . . . . . . . 2 . . . . . 1 . . . 3 2 . 2 . Parts Fried 40 | . . . . . . . . . . . 3 . . . . . 7 8 1 . 1 . 5 . . . . 6 4 . 4 1 Impact Corruptions 8 | . . . . . . . . . . . 1 . . . . . . . . . . . 1 . . . 1 1 . 1 3 . Robots Melted 4 | . . . . 2 . . . . . . . . . . . . . . . . . 1 1 . . . . . . . . . Combat Hostiles 1 | . . . . 1 . . . . . . . . . . . . . . . . . . . . . . . . . . . . Parts Melted 72 | . 1 . 3 7 5 11 3 7 . . . . 7 . 4 1 4 3 2 . . 7 5 . . . . 1 . 1 . . Heat Transferred 37387 | . . 511 981 4134 2386 5767 3075 2575 . . 338 175 2998 100 2549 1598 1396 3835 1048 . 50 1687 1457 148 300 . . 50 129 . . 100 Parts Sabotaged . | . . . . . . . . . . . . . . . . . . . . . . . . . . . . . . . . . Parts Stolen . | . . . . . . . . . . . . . . . . . . . . . . . . . . . . . . . . . Parts Stripped . | . . . . . . . . . . . . . . . . . . . . . . . . . . . . . . . . . Power Chain Reactions 13 | . . . . . . . . 1 . . . . . . . 1 3 1 1 . . . . . 1 . . 1 1 . . 3 Alert | -11 -10 -10 -8 -8 -8 -8 -8 -8 -7 -7 -7 -7 -6 -6 -6 -6 -5 -5 -4 -4 -4 -4 -4 -4 -3 -3 -3 -3 -3 -2 -2 -2 ------- Run | Yrd Mat Sub Mat Gar Mat Gar Mat Gar Fac Was Fac Gar Fac Was Fac Gar Fac Gar Fac Was Fac Gar Fac Arm Res Gar Res Tes Gar Res Qua Sec Maximum Alert Level 5 | . . . 1 3 1 3 2 4 2 1 4 4 3 . 2 2 2 5 4 1 1 3 2 1 1 2 2 2 3 2 1 3 Low Security (%) 44 | 100 100 . 71 26 86 22 . . . 79 35 . 73 100 80 13 48 . . . 99 14 82 80 99 7 7 35 . 35 95 9 Level 1 21 | . . . 28 30 13 16 24 7 . 20 17 . 10 . 14 19 33 8 . 100 . 40 16 19 . 10 66 54 11 31 4 26 Level 2 20 | . . . . 42 . 36 75 21 100 . 29 . 7 . 5 66 18 26 . . . 37 . . . 81 25 10 28 33 . 24 Level 3 9 | . . . . . . 24 . 70 . . 9 32 8 . . . . 22 85 . . 7 . . . . . . 59 . . 39 Level 4 2 | . . . . . . . . . . . 8 67 . . . . . 29 14 . . . . . . . . . . . . . Level 5 . | . . . . . . . . . . . . . . . . . . 12 . . . . . . . . . . . . . . High Security . | . . . . . . . . . . . . . . . . . . . . . . . . . . . . . . . . . Max Security . | . . . . . . . . . . . . . . . . . . . . . . . . . . . . . . . . . Sterilizations 1 | . . . . . . . . . . . . . . . . . . . . . . . . . . . 1 . . . . . Peak Influence 1714 | 10 80 . 275 717 349 830 650 1101 658 223 1348 1341 778 64 445 683 590 1714 1138 392 232 703 408 336 227 648 595 447 957 541 300 1018 Initial 935 | . . . 38 . 349 34 404 306 577 223 58 935 703 64 5 169 358 274 899 392 232 84 368 16 176 120 364 330 329 537 242 48 Average 336 | 1 14 . 123 362 76 492 448 765 579 153 422 1157 214 44 93 403 268 993 959 367 82 402 101 98 91 446 336 251 703 278 95 543 Influence Increases 25529 | 55 222 360 335 767 346 806 766 885 251 . 2194 476 704 24 1058 774 1374 1540 769 . 410 759 1526 927 601 688 1800 1003 978 877 676 1578 Destroy 0b10 Robot/C 9705 | . 140 120 120 420 140 560 480 520 180 . 720 240 320 . 400 220 580 640 220 . 180 260 360 420 200 300 390 345 330 255 315 330 Destroy 0b10 Robot/NC 909 | 55 20 . 25 20 55 10 35 . 15 . 170 . 35 . 70 30 65 15 40 . 5 20 65 . 15 . 40 56 . 12 28 8 Destroy Leader 1676 | . 26 . 24 30 72 30 126 40 20 . 190 30 104 . 120 40 148 20 64 . 30 20 76 80 60 . 110 50 32 50 42 42 Allied During Kill 3339 | . . . . 24 40 . 2 7 21 . 794 74 103 . 290 44 4 46 192 . 7 59 197 90 207 164 340 108 117 284 15 110 Trap Triggered on 0b10 48 | . . . . . . 30 . . . . . . . . . . . . . . 10 . . . . . . . . 8 . . Successful Hack 602 | . 6 . 27 12 21 14 2 . . . 25 26 54 . 59 . 14 . 12 . 20 . 98 45 14 . 67 35 14 25 12 . Select Force Hacks 30 | . 30 . . . . . . . . . . . . . . . . . . . . . . . . . . . . . . . Disable Machine 1788 | . . . 15 . 15 . 45 . 15 . 120 . 45 . 75 . 225 90 105 . 60 15 240 135 45 15 24 144 48 36 84 192 Anti-Garrison Action 2204 | . . . . 150 . 50 . 250 . . . 50 . . . 350 . 600 . . . 300 . . . 76 . . 265 . . 113 Destroy Structure 3239 | . . . 10 111 3 52 76 38 . . 175 26 13 24 44 75 308 114 136 . 98 85 224 142 60 121 96 166 172 195 144 531 Partial Spotted 12 | . . . . . . . . . . . . . . . . . . . . . . . . . . 12 . . . . . . Lose Combat Pursuer 549 | . . 240 . . . 60 . 30 . . . 30 30 . . 15 30 15 . . . . . 15 . . . 24 . 12 36 12 Miscellaneous 1428 | . . . 114 . . . . . . . . . . . . . . . . . . . 266 . . . 733 75 . . . 240 Influence Decreases 24527 | 55 222 286 409 50 1010 29 1124 256 714 555 941 471 1862 199 824 333 1665 218 1361 790 622 176 2194 626 777 200 1861 1151 460 1403 1021 662 Entered New Map 7189 | . . . 36 . 368 19 426 166 524 415 25 401 638 119 3 73 325 118 815 730 100 36 335 19 160 40 284 257 110 420 189 38 Time Decay 8650 | 55 222 216 213 . 282 . 398 . 190 140 494 . 534 60 286 . 660 . 356 50 332 . 709 356 427 . 702 514 . 518 502 434 Search Patrol Dispatched 200 | . . . . . . . . . . . . . . . . . . . . . . . . . . . 200 . . . . . Lost Part 600 | . . 70 10 10 . 10 . 70 . . . . 60 . 30 40 60 60 10 . 30 . 50 . . . . . 30 10 20 30 Lost Ally 3851 | . . . . 40 60 . . 20 . . 272 70 130 20 230 220 170 40 180 10 10 140 551 138 40 160 300 230 320 180 160 160 Purge Threat 4037 | . . . 150 . 300 . 300 . . . 150 . 500 . 275 . 450 . . . 150 . 549 113 150 . 375 150 . 275 150 . Squads Dispatched 173 | . 1 . 1 . 6 . 5 . 2 . 11 . 11 . 15 . 8 . 7 . 4 . 26 13 4 . 16 12 . 12 8 11 Investigation 35 | . 1 . . . 1 . 1 . 1 . 3 . 1 . 4 . 2 . 3 . 1 . 6 4 1 . 3 1 . . 2 . Extermination 47 | . . . . . . . . . 1 . 3 . 2 . 2 . 4 . 1 . 2 . 6 5 3 . 4 4 . 3 5 2 Reinforcement 68 | . . . 1 . 5 . 2 . . . 3 . 8 . 7 . 2 . 1 . 1 . 13 3 . . 8 4 . 5 1 4 Assault 13 | . . . . . . . 2 . . . 1 . . . . . . . 2 . . . . 1 . . 1 . . 3 . 3 Garrison 9 | . . . . . . . . . . . 1 . . . 2 . . . . . . . 1 . . . . 3 . 1 . 1 Intercept 1 | . . . . . . . . . . . . . . . . . . . . . . . . . . . . . . . . 1 Searches Triggered 2 | . . . . . . . . . . . . . . . . . . . . . . . . . . . 2 . . . . . Construction Impeded 3 | . . . . . . . . . . . 2 . . . 1 . . . . . . . . . . . . . . . . . Haulers Reinforced 4 | . . . . . . . . . . . 1 . . . . . . . . . . . 1 . . . 2 . . . . . Active Scanning Responses . | . . . . . . . . . . . . . . . . . . . . . . . . . . . . . . . . . Cargo Convoy Interrupts 1 | . . . . . . . . . . . . . . . 1 . . . . . . . . . . . . . . . . . Alert ID Control Effect 358 | . . . . . . . . . . . 1 6 16 . 13 12 7 3 8 . 1 18 63 22 24 17 49 20 15 31 5 27 Stealth | -11 -10 -10 -8 -8 -8 -8 -8 -8 -7 -7 -7 -7 -6 -6 -6 -6 -5 -5 -4 -4 -4 -4 -4 -4 -3 -3 -3 -3 -3 -2 -2 -2 --------- Run | Yrd Mat Sub Mat Gar Mat Gar Mat Gar Fac Was Fac Gar Fac Was Fac Gar Fac Gar Fac Was Fac Gar Fac Arm Res Gar Res Tes Gar Res Qua Sec Distress Signals 25 | . 1 . . . 1 . . . . . . . 1 . 1 . . . . . 1 . 4 2 . . 4 4 . 2 1 3 Communications Jammed 616 | . . . . . . . . . . . 98 . 16 . 66 . 28 . 6 . 86 . 80 115 1 . 9 3 . 18 4 86 Distress Signals 606 | . . . . . . . . . . . 98 . 12 . 66 . 28 . 6 . 86 . 80 115 . . 9 1 . 18 1 86 Times Spotted 1083 | . 14 23 11 22 16 33 39 29 10 . 37 21 51 6 48 26 43 42 24 5 24 42 92 53 28 39 86 48 47 47 29 48 Peak Tracking Total 12 | . 4 3 4 5 3 8 4 6 4 . 5 5 7 2 12 5 5 5 5 3 6 5 8 7 3 5 6 10 11 5 5 8 Tactical Retreats 23 | . 1 5 . . . 3 . 1 . . . 2 1 . . 1 2 1 . . . . . 1 . . . 2 . 1 1 1 Traps | -11 -10 -10 -8 -8 -8 -8 -8 -8 -7 -7 -7 -7 -6 -6 -6 -6 -5 -5 -4 -4 -4 -4 -4 -4 -3 -3 -3 -3 -3 -2 -2 -2 ------- Run | Yrd Mat Sub Mat Gar Mat Gar Mat Gar Fac Was Fac Gar Fac Was Fac Gar Fac Gar Fac Was Fac Gar Fac Arm Res Gar Res Tes Gar Res Qua Sec Traps Triggered 74 | . . 1 . 2 . 4 2 7 1 . 2 7 1 . . 5 4 9 2 . 1 2 1 1 1 9 4 . 5 1 2 . Indirectly 6 | . . . . . . . . . . . . . . . . . 2 1 . . . . . . . . . . 2 . 1 . Trap Hack Attempts . | . . . . . . . . . . . . . . . . . . . . . . . . . . . . . . . . . Triggered . | . . . . . . . . . . . . . . . . . . . . . . . . . . . . . . . . . Disarmed . | . . . . . . . . . . . . . . . . . . . . . . . . . . . . . . . . . Reprogrammed 12 | . . . . . . . . . . . . . . . . . . . 6 . . . . . . . . . . 6 . . Reused 4 | . . . . . . 3 . . . . . . . . . . . . . . . . . . . . . . . 1 . . Traps Extracted . | . . . . . . . . . . . . . . . . . . . . . . . . . . . . . . . . . Installed 4 | . . . . . . 3 1 . . . . . . . . . . . . . . . . . . . . . . . . . Triggered 5 | . . . . . . 3 . . . . . . . . . . . . . . 1 . . . . . . . . 1 . . Most Traps Carried 5 | . . . . . . 5 1 . . . . . . . . . . . . . . . . . . . . . . . . . Machines | -11 -10 -10 -8 -8 -8 -8 -8 -8 -7 -7 -7 -7 -6 -6 -6 -6 -5 -5 -4 -4 -4 -4 -4 -4 -3 -3 -3 -3 -3 -2 -2 -2 ---------- Run | Yrd Mat Sub Mat Gar Mat Gar Mat Gar Fac Was Fac Gar Fac Was Fac Gar Fac Gar Fac Was Fac Gar Fac Arm Res Gar Res Tes Gar Res Qua Sec Machines Disabled 180 | . . 6 1 4 1 2 3 3 1 . 8 4 3 . 5 5 15 16 7 . 4 6 18 9 3 4 2 12 11 3 7 17 Max in Single Turn 6 | . . 2 1 2 1 1 1 1 1 . 1 2 1 . 2 1 4 2 6 . 2 1 4 1 1 1 1 3 1 1 1 1 Garrison Access 18 | . . . . . . . . . 1 . . . 1 . 1 . 1 . 3 . . . 4 . 1 . 3 . . 2 . 1 Garrison Relay 30 | . . . . 1 . 1 . 2 . . . 1 . . . 4 . 8 . . . 4 . . . 4 . . 5 . . . Phase Generator 2 | . . . . 1 . . . 1 . . . . . . . . . . . . . . . . . . . . . . . . Energy Cycler 1 | . . . . . . . . . . . . . . . . . . . . . . . . 1 . . . . . . . . Machines Repaired 7 | . . . . . . . . . . . . . . . . . 1 . . . . . 3 . 1 . 1 . . 1 . . Machines Dismantled . | . . . . . . . . . . . . . . . . . . . . . . . . . . . . . . . . . Machines Sabotaged . | . . . . . . . . . . . . . . . . . . . . . . . . . . . . . . . . . Overloaded Fab Kills . | . . . . . . . . . . . . . . . . . . . . . . . . . . . . . . . . . Hacking | -11 -10 -10 -8 -8 -8 -8 -8 -8 -7 -7 -7 -7 -6 -6 -6 -6 -5 -5 -4 -4 -4 -4 -4 -4 -3 -3 -3 -3 -3 -2 -2 -2 --------- Run | Yrd Mat Sub Mat Gar Mat Gar Mat Gar Fac Was Fac Gar Fac Was Fac Gar Fac Gar Fac Was Fac Gar Fac Arm Res Gar Res Tes Gar Res Qua Sec Machines Accessed 172 | . 3 2 4 1 6 2 9 1 2 . 9 2 8 . 16 1 10 . 7 . 9 2 16 7 6 1 10 13 3 8 7 7 Terminals 90 | . 2 . 3 1 4 2 6 1 . . 4 2 5 . 8 1 2 . 1 . 6 2 3 3 2 1 4 9 3 5 5 5 Fabricators 21 | . . . . . . . . . 1 . 1 . . . 3 . 3 . 3 . . . 3 4 . . 1 2 . . . . Repair Stations 16 | . . . . . 1 . . . . . 1 . 1 . 2 . 2 . . . 1 . 5 . . . 2 1 . . . . Recycling Units 2 | . 1 . . . . . . . . . . . . . . . 1 . . . . . . . . . . . . . . . Scanalyzers 14 | . . . . . . . 2 . . . 2 . 1 . 1 . . . . . 1 . 1 . 2 . . . . 1 1 2 Garrison Access 27 | . . . 1 . 1 . 1 . 1 . 1 . 1 . 2 . 2 . 3 . 1 . 4 . 2 . 3 1 . 2 1 . Total Hacks 382 | . 4 5 10 2 20 2 23 2 4 . 20 4 16 . 33 2 19 . 18 . 23 4 44 18 11 1 24 28 4 17 14 10 Successful 197 | . 3 5 5 1 11 1 9 . 3 . 9 2 8 . 20 1 7 . 10 . 10 1 27 13 7 1 17 10 2 7 3 4 Failed 181 | . . . 5 1 9 1 13 2 1 . 11 2 8 . 13 1 12 . 8 . 12 3 16 5 4 . 7 18 2 10 11 6 Catastrophic 34 | . . . 2 1 1 . 2 1 . . 2 . 2 . 1 . 4 . 1 . 1 . 3 1 . . 1 4 2 1 3 1 Database Lockouts 4 | . 1 . . . . . 1 . . . . . . . . . . . . . 1 . 1 . . . . . . . . . Manual 161 | . 6 . 8 . 14 1 14 1 . . 9 2 9 . 17 2 3 . 3 . 9 2 18 6 3 . 13 5 1 3 8 4 Terminals 194 | . 3 . 8 2 14 2 16 2 . . 9 4 11 . 15 2 4 . 6 . 14 4 13 5 3 1 8 19 4 11 8 6 Fabricators 59 | . . . . . . . . . 3 . 3 . . . 7 . 9 . 9 . . . 7 13 . . 3 5 . . . . Repair Stations 48 | . . . . . 2 . . . . . 2 . 2 . 6 . 2 . . . 4 . 18 . . . 10 2 . . . . Recycling Units 3 | . 1 . . . . . . . . . . . . . . . 2 . . . . . . . . . . . . . . . Scanalyzers 36 | . . . . . . . 6 . . . 5 . 2 . 3 . . . . . 4 . 2 . 5 . . . . 2 3 4 Garrison Access 37 | . . . 2 . 4 . 1 . 1 . 1 . 1 . 2 . 2 . 3 . 1 . 4 . 3 . 3 2 . 4 3 . Terminal Hacks 64 | . 2 5 3 1 6 1 2 . . . 3 2 3 . 4 1 . . 2 . 2 1 5 2 . 1 3 7 2 4 1 1 Record 9 | . . 4 . . . . . . . . . . . . . . . . . . 1 . . . . . . 3 . 1 . . Part Schematic 4 | . . . . . 1 . . . . . . . 1 . 1 . . . . . . . . 1 . . . . . . . . Robot Schematic 1 | . . . 1 . . . . . . . . . . . . . . . . . . . . . . . . . . . . . Robot Analysis 3 | . 1 . 1 . 1 . . . . . . . . . . . . . . . . . . . . . . . . . . . Open Door 2 | . . . . . . . . . . . . . . . . . . . . . . . . . . 1 . . 1 . . . Branch Access Points 4 | . . . . . . . . . . . . . 1 . . . . . . . . . 1 . . . 1 . . 1 . . Emergency Access Points 2 | . . . . . . . . . . . . 1 . . . . . . . . . 1 . . . . . . . . . . Terminal Index 6 | . . . . . . . . . . . . . 1 . 1 . . . . . 1 . . . . . 1 1 . 1 . . Fabricator Index 1 | . . . . . . . . . . . . . . . . . . . . . . . 1 . . . . . . . . . Repair Station Index 1 | . . . . . . . . . . . . . . . . . . . . . . . 1 . . . . . . . . . Scanalyzer Index 1 | . . . . . . . . . . . 1 . . . . . . . . . . . . . . . . . . . . . Alert Level 1 | . . . . . . . . . . . . . . . . . . . . . . . . . . . . 1 . . . . Unreport Threat 11 | . . . 1 . 2 . 2 . . . 1 . . . . . . . . . . . 2 1 . . . 2 . . . . Locate Traps 2 | . . . . . . . . . . . 1 . . . . . . . 1 . . . . . . . . . . . . . Reprogram Traps 2 | . . . . . . . . . . . . . . . . . . . 1 . . . . . . . . . . 1 . . Transport Status 1 | . 1 . . . . . . . . . . . . . . . . . . . . . . . . . . . . . . . Recall Extermination 1 | . . . . . . . . . . . . . . . . . . . . . . . . . . . . . . . 1 . Recall Reinforcements 1 | . . . . . . . . . . . . . . . 1 . . . . . . . . . . . . . . . . . Hauler Manifests 1 | . . . . . . . . . . . . . . . 1 . . . . . . . . . . . . . . . . . Registered Components 1 | . . . . . . . . . . . . . . . . . . . . . . . . . . . 1 . . . . . Zone Layout 3 | . . . . . 2 . . . . . . . . . . . . . . . . . . . . . . . . . . 1 Garrison Registry 5 | . . . . 1 . 1 . . . . . 1 . . . 1 . . . . . . . . . . . . 1 . . . Proto ID Catalog 1 | . . 1 . . . . . . . . . . . . . . . . . . . . . . . . . . . . . . Fabricator Hacks 31 | . . . . . . . . . 2 . 1 . . . 5 . 4 . 4 . . . 2 9 . . 2 2 . . . . Network Status 4 | . . . . . . . . . . . 1 . . . 1 . 1 . . . . . . . . . . 1 . . . . Load Schematic 14 | . . . . . . . . . 1 . . . . . 2 . 2 . 2 . . . 1 5 . . 1 . . . . . Build 13 | . . . . . . . . . 1 . . . . . 2 . 1 . 2 . . . 1 4 . . 1 1 . . . . Repair Station Hacks 19 | . . . . . 2 . . . . . . . . . 3 . . . . . 2 . 6 . . . 6 . . . . . Scan Component 11 | . . . . . 1 . . . . . . . . . 2 . . . . . 1 . 4 . . . 3 . . . . . Repair 8 | . . . . . 1 . . . . . . . . . 1 . . . . . 1 . 2 . . . 3 . . . . . Recycling Unit Hacks . | . . . . . . . . . . . . . . . . . . . . . . . . . . . . . . . . . Scanalyzer 21 | . . . . . . . 5 . . . 2 . 2 . 1 . . . . . 3 . 1 . 2 . . . . 1 1 3 Insert Component 8 | . . . . . . . 2 . . . . . 1 . . . . . . . 1 . . . 1 . . . . . . 3 Analyze 3 | . . . . . . . 2 . . . . . . . . . . . . . 1 . . . . . . . . . . . Retrieve Study 10 | . . . . . . . 1 . . . 2 . 1 . 1 . . . . . 1 . 1 . 1 . . . . 1 1 . Garrison Access Hacks 29 | . . . 1 . 2 . 1 . 1 . 1 . 1 . 2 . 2 . 3 . 1 . 4 . 3 . 3 1 . 2 1 . Unlock Access 10 | . . . 1 . 1 . 1 . . . 1 . . . 1 . 1 . . . 1 . . . 1 . . 1 . . 1 . Seal Access 17 | . . . . . . . . . 1 . . . 1 . 1 . 1 . 3 . . . 4 . 1 . 3 . . 2 . . Coupler Status 2 | . . . . . 1 . . . . . . . . . . . . . . . . . . . 1 . . . . . . . Unauthorized Hacks 33 | . 1 . 1 . 1 . 1 . . . 2 . 2 . 5 . 1 . 1 . 2 . 9 2 2 . 3 . . . . . Terminals 18 | . . . 1 . 1 . 1 . . . 1 . 1 . 3 . 1 . 1 . 1 . 3 1 2 . 1 . . . . . Assimilate 1 | . . . . . . . . . . . . . . . . . . . . . . . 1 . . . . . . . . . Botnet 13 | . . . 1 . 1 . 1 . . . 1 . 1 . 2 . 1 . 1 . 1 . 1 1 1 . . . . . . . Operators 4 | . . . . . . . . . . . . . . . 1 . . . . . . . 1 . 1 . 1 . . . . . Fabricators 6 | . . . . . . . . . . . 1 . . . 1 . . . . . . . 3 1 . . . . . . . . Prioritize 2 | . . . . . . . . . . . . . . . . . . . . . . . 1 1 . . . . . . . . Liberate 4 | . . . . . . . . . . . 1 . . . 1 . . . . . . . 2 . . . . . . . . . Repair Stations 8 | . . . . . . . . . . . . . 1 . 1 . . . . . 1 . 3 . . . 2 . . . . . Mechanics 7 | . . . . . . . . . . . . . 1 . 1 . . . . . 1 . 2 . . . 2 . . . . . Patch 1 | . . . . . . . . . . . . . . . . . . . . . . . 1 . . . . . . . . . Recycling Units 1 | . 1 . . . . . . . . . . . . . . . . . . . . . . . . . . . . . . . Tunnel 1 | . 1 . . . . . . . . . . . . . . . . . . . . . . . . . . . . . . . Scanalyzers . | . . . . . . . . . . . . . . . . . . . . . . . . . . . . . . . . . Garrison Access . | . . . . . . . . . . . . . . . . . . . . . . . . . . . . . . . . . Data Cores Recovered 8 | . . . . . 1 . . . . . . . 3 . . . . . . . 1 . . 1 1 . . 1 . . . . Used 4 | . . . . . . . . . . . . . 2 . . . . . . . . . . . 1 . . 1 . . . . Hacking Detections 109 | . 1 . 3 1 6 . 4 1 1 . 7 1 3 . 8 . 8 . 4 . 5 . 11 5 2 . 5 13 2 7 6 5 Full Trace Events 34 | . . . . 1 1 . 1 1 1 . 2 . 1 . 4 1 2 . 3 . 1 . 4 4 1 . 4 1 . . 1 . Feedback Events 4 | . . . . . . . 1 . . . 1 . . . 1 . . . . . . . . 1 . . . . . . . . Corruption 3 | . . . . . . . 1 . . . 1 . . . . . . . . . . . . 1 . . . . . . . . Hackware Fried 1 | . . . . . . . . . . . . . . . 1 . . . . . . . . . . . . . . . . . Feedback Blocked . | . . . . . . . . . . . . . . . . . . . . . . . . . . . . . . . . . Robot Schematics Acquired 9 | . . . 1 . . . . . . . . . . . . . . . . . . . . . . . . 5 . . . 3 Robots Built 3 | . . . . . . . . . . . . . . . 1 . . . 1 . . . 1 . . . . . . . . . Authchips 1 | . . . . . . . . . . . . . . . 1 . . . . . . . . . . . . . . . . . Time 232 | . . . . . . . . . . . . . . . 58 . . . 116 . . . 58 . . . . . . . . . Total Robot Build Rating 9 | . . . . . . . . . . . . . . . 3 . . . 3 . . . 3 . . . . . . . . . Part Schematics Acquired 30 | . . . . . 1 . 2 . . . . . 1 . 1 . . . . . 1 . . 1 . . . 14 . . . 9 Parts Built 10 | . . . . . . . . . 1 . . . . . . . 1 . 1 . . . . 5 . . 1 1 . . . . Authchips 2 | . . . . . . . . . . . . . . . . . . . . . . . . 2 . . . . . . . . Time 676 | . . . . . . . . . 25 . . . . . 106 . 106 . 53 . . . . 287 . . 31 68 . . . . Total Part Build Rating 53 | . . . . . . . . . 1 . . . . . . . 6 . 6 . . . . 30 . . 2 8 . . . . Part Studies Acquired 10 | . . . . . . . 1 . . . 2 . 1 . 1 . . . . . 1 . 1 . 1 . . . . 1 1 . Parts Repaired 7 | . . . . . 1 . . . . . . . . . 1 . . . . . 1 . 1 . . . 3 . . . . . Time 389 | . . . . . 38 . . . . . . . . . 22 . . . . . 50 . 53 . . . 226 . . . . . Parts Recycled . | . . . . . . . . . . . . . . . . . . . . . . . . . . . . . . . . . Recycled Matter . | . . . . . . . . . . . . . . . . . . . . . . . . . . . . . . . . . Retrieved Matter . | . . . . . . . . . . . . . . . . . . . . . . . . . . . . . . . . . Retrieved Components . | . . . . . . . . . . . . . . . . . . . . . . . . . . . . . . . . . Parts Scanalyzed 4 | . . . . . . . 2 . . . . . . . . . . . . . 1 . . . 1 . . . . . . . Part Schematics Acquired 3 | . . . . . . . 2 . . . . . . . . . . . . . 1 . . . . . . . . . . . Parts Damaged 1 | . . . . . . . . . . . . . . . . . . . . . 1 . . . . . . . . . . . Bothacking | -11 -10 -10 -8 -8 -8 -8 -8 -8 -7 -7 -7 -7 -6 -6 -6 -6 -5 -5 -4 -4 -4 -4 -4 -4 -3 -3 -3 -3 -3 -2 -2 -2 ------------ Run | Yrd Mat Sub Mat Gar Mat Gar Mat Gar Fac Was Fac Gar Fac Was Fac Gar Fac Gar Fac Was Fac Gar Fac Arm Res Gar Res Tes Gar Res Qua Sec Used RIF Installer 11 | . . . . 1 . 1 . 1 . . . 2 . . . 1 . 2 . . . 1 . . . 1 . . 1 . . . Coupler Efficiency 1 | . . . . . . . . . . . . 1 . . . . . . . . . . . . . . . . . . . . Hotswap 1 | . . . . . . . . . . . . . . . . . . 1 . . . . . . . . . . . . . . Code Merge 2 | . . . . . . . . . . . . . . . . 1 . . . . . . . . . . . . 1 . . . Threat Obfuscator 1 | . . . . . . . . . . . . . . . . . . . . . . . . . . 1 . . . . . . Signal Jammer 1 | . . . . . . . . 1 . . . . . . . . . . . . . . . . . . . . . . . . Zone Cloak 1 | . . . . . . . . . . . . 1 . . . . . . . . . . . . . . . . . . . . Robot Detection 1 | . . . . . . . . . . . . . . . . . . 1 . . . . . . . . . . . . . . Alert ID Control 1 | . . . . . . 1 . . . . . . . . . . . . . . . . . . . . . . . . . . Autooverride 1 | . . . . . . . . . . . . . . . . . . . . . . 1 . . . . . . . . . . Autoassimilate 1 | . . . . . . . . 1 . . . . . . . . . . . . . . . . . . . . . . . . Robots Hacked 389 | . . . . . . . 1 4 . . 12 3 23 5 23 4 7 13 12 6 8 22 58 19 27 13 44 16 19 27 7 16 Non-combat 78 | . . . . . . . . 1 . . 3 . 6 . 5 . 4 . 1 . 3 . 13 3 11 1 12 5 . 6 3 1 Combat 311 | . . . . . . . 1 3 . . 9 3 17 5 18 4 3 13 11 6 5 22 45 16 16 12 32 11 19 21 4 15 Autooverrided 31 | . . . . . . . . . . . . . . . . . . . . . . 2 7 1 2 3 8 2 . 3 1 2 Autoassimilated 65 | . . . . . . . . . . . 3 1 5 . 5 1 1 . 1 . 2 2 8 5 2 3 9 4 7 5 . 1 Robot Hacks Applied 359 | . . . . . . . 2 5 . . 10 2 24 7 23 4 13 13 11 6 13 20 51 15 28 7 35 10 14 24 7 15 parse_system 23 | . . . . . . . . 2 . . . . . 2 2 . 1 1 . . . 1 3 1 . . 2 2 1 3 . 2 find_chute 1 | . . . . . . . . . . . . . 1 . . . . . . . . . . . . . . . . . . . ignore_repairs 14 | . . . . . . . . . . . 1 . . . . . . . . . . . 2 . 7 . 2 2 . . . . find_fabricator 2 | . . . . . . . . . . . . . . . . . . . . . . . . . 1 . 1 . . . . . drop_inventory 16 | . . . . . . . . . . . 1 . 2 . . . 1 . . . . . 2 . 3 . 5 . . 2 . . ignore_parts 10 | . . . . . . . . . . . . . . . 6 . . . . . . . 3 . . . . . . . 1 . purge_threat 21 | . . . . . . . . . . . . . 5 . 2 . 4 . . . 1 . 2 . 1 . 3 . . 2 1 . reprogram_traps 1 | . . . . . . . . . . . . . . . . . . . . . 1 . . . . . . . . . . . block_reporting 5 | . . . . . . . . . . . . . . . . . 1 . . . 2 . . . . . 1 . . . 1 . map_route 1 | . . . . . . . . . . . . . . . . . . . . . . . 1 . . . . . . . . . disable_scanner 2 | . . . . . . . . . . . . . . . . . . . . . . . . . . . . . . . . 2 ignore_targets 11 | . . . . . . . . . . . . . . 5 . . . . . 6 . . . . . . . . . . . . find_garrison 10 | . . . . . . . 1 . . . 1 . 1 . 1 . 1 . . . 2 . 1 . . . 1 . . 1 . . scatter_targeting 1 | . . . . . . . . . . . . . . . 1 . . . . . . . . . . . . . . . . . mark_system 2 | . . . . . . . . . . . . . . . . . . . . . . . 2 . . . . . . . . . spike_heat 1 | . . . . . . . . . . . . . . . . . . . . . . . . 1 . . . . . . . . overload_power 5 | . . . . . . . . . . . . . . . . . . . . . 1 . 1 . . . . . . 1 1 1 amplify_resonance 57 | . . . . . . . . . . . 4 2 4 . 2 2 1 5 1 . 1 4 2 6 3 3 7 2 2 4 . 2 wipe_record 2 | . . . . . . . . . . . . . . . . . . . . . . . 1 1 . . . . . . . . overwrite_iff 42 | . . . . . . . . 1 . . . . 1 . 2 2 1 5 . . 1 10 2 2 3 2 1 . 5 3 . 1 formatsys_low 27 | . . . . . . . . 1 . . . . 3 . 1 . 3 . 1 . 2 . 3 1 1 1 4 3 . 2 . 1 formatsys_high 105 | . . . . . . . 1 1 . . 3 . 7 . 6 . . 2 9 . 2 5 26 3 9 1 8 1 6 6 3 6 Relay Couplers Released 141 | . . . . 3 . 4 . 8 1 . . 4 1 . 2 16 2 33 3 . . 14 7 . 1 16 4 . 16 3 . 3 Machine Destruction 141 | . . . . 3 . 4 . 8 1 . . 4 1 . 2 16 2 33 3 . . 14 7 . 1 16 4 . 16 3 . 3 Attached 48 | . . . . . . . 1 2 . . 2 . 5 . 3 3 1 5 . . 1 4 2 2 1 6 1 . 5 2 2 . Merged Code Value 377 | . . . . . . . . . . . . . . . . 73 . 97 . . . 120 25 . . 12 6 . 31 13 . . Fabnet Peak Effective % . | . . . . . . . . . . . . . . . . . . . . . . . . . . . . . . . . . Robots Rewired 12 | . . . . . . . . 1 . . . . . . . 8 . 1 . . . . . . . 2 . . . . . . Allies Hacked 18 | . . . . . . . . 1 . . 1 . 1 . . . . . . . 1 . 2 . 2 1 2 5 . 1 1 . Hacks Repelled . | . . . . . . . . . . . . . . . . . . . . . . . . . . . . . . . . . Allies | -11 -10 -10 -8 -8 -8 -8 -8 -8 -7 -7 -7 -7 -6 -6 -6 -6 -5 -5 -4 -4 -4 -4 -4 -4 -3 -3 -3 -3 -3 -2 -2 -2 -------- Run | Yrd Mat Sub Mat Gar Mat Gar Mat Gar Fac Was Fac Gar Fac Was Fac Gar Fac Gar Fac Was Fac Gar Fac Arm Res Gar Res Tes Gar Res Qua Sec Total Allies 342 | . . . 3 . 3 . 2 4 . 21 6 1 16 1 17 14 11 11 12 . 7 21 52 13 17 12 28 14 22 19 4 11 Largest Group 22 | . . . 3 3 3 . 1 3 3 22 21 7 9 4 11 10 5 4 8 5 3 7 16 13 9 10 12 7 11 10 5 4 Highest-Rated Group 658 | . . . 72 72 63 . 85 85 59 612 581 161 270 226 361 270 245 184 394 220 124 398 658 541 476 506 603 351 604 599 344 455 Highest-Rated Ally 344 | . . . 24 24 21 . 85 85 23 35 35 31 32 142 47 43 54 99 99 56 49 95 95 143 64 64 64 64 116 89 344 344 Total Orders 75 | . . . . . 1 . . 1 . . 1 4 . . 11 . 4 . 4 . 6 4 2 3 1 3 9 2 6 6 3 4 STAY 32 | . . . . . 1 . . . . . . 2 . . 5 . . . 2 . 3 2 . 1 . 1 3 1 5 3 1 2 ROAM 1 | . . . . . . . . . . . . 1 . . . . . . . . . . . . . . . . . . . . FOLLOW 22 | . . . . . . . . . . . . 1 . . 4 . . . 1 . 3 2 1 1 . 1 3 . 1 2 1 1 AID 17 | . . . . . . . . 1 . . 1 . . . 2 . 2 . 1 . . . 1 1 1 1 3 1 . 1 . 1 EXPLORE 3 | . . . . . . . . . . . . . . . . . 2 . . . . . . . . . . . . . 1 . Ally Attacks 2576 | . . . . 11 32 . 5 2 20 . 179 51 100 50 128 56 41 34 73 30 4 99 433 163 128 94 248 115 117 185 29 149 Total Damage 79480 | . . . . 313 468 . 121 72 275 . 5056 738 2418 1284 3397 1685 976 546 2140 1045 102 2835 11969 5360 4206 2790 8947 3444 3568 6741 1125 7859 Kills 488 | . . . . 5 5 . 1 1 4 . 55 10 17 . 19 12 7 6 12 2 1 19 72 29 25 19 54 24 21 36 5 27 Allies Corrupted 23 | . . . . . . . . . . . 2 . . . . . . . 1 . . . 4 1 1 1 5 1 2 2 2 1 Allies Melted 5 | . . . . . . . . . . . . . . . . . . 1 2 . . . 1 . . . . . . . . 1 X0-1V1 Amusement Gains 385 | . 15 20 5 50 20 20 . . . . . . . . . . . 10 . . . . 29 20 10 20 37 20 9 . 30 70 Good Acts 201 | . . 8 4 2 5 4 5 8 3 1 10 2 8 3 12 5 14 11 15 1 4 1 6 16 2 5 13 9 9 2 9 4 Bad Acts 160 | . . 6 1 4 1 9 7 7 2 . 3 2 4 . 1 1 12 5 . . 8 3 26 7 3 4 21 1 7 7 2 6 Intel | -11 -10 -10 -8 -8 -8 -8 -8 -8 -7 -7 -7 -7 -6 -6 -6 -6 -5 -5 -4 -4 -4 -4 -4 -4 -3 -3 -3 -3 -3 -2 -2 -2 ------- Run | Yrd Mat Sub Mat Gar Mat Gar Mat Gar Fac Was Fac Gar Fac Was Fac Gar Fac Gar Fac Was Fac Gar Fac Arm Res Gar Res Tes Gar Res Qua Sec Active Infowar (turns) 2795 | 42 609 . . . . . . . . . . . 9 . . . . . . . 2 . 1 712 1316 102 2 . . . . . Optics 1 | . . . . . . . . . . . . . . . . . . . . . . . 1 . . . . . . . . . Sensors 2 | . . . . . . . . . . . . . 2 . . . . . . . . . . . . . . . . . . . Traps 2 | . . . . . . . . . . . . . . . . . . . . . 2 . . . . . . . . . . . Seismic 659 | 42 609 . . . . . . . . . . . 7 . . . . . . . . . . . 1 . . . . . . . Cloaking 2130 | . . . . . . . . . . . . . . . . . . . . . . . . 712 1316 102 . . . . . . ECM 2 | . . . . . . . . . . . . . . . . . . . . . . . . . . . 2 . . . . . Robot Analysis Total 3 | . 1 . 1 . 1 . . . . . . . . . . . . . . . . . . . . . . . . . . . Derelict Logs Recovered 2 | . . 2 . . . . . . . . . . . . . . . . . . . . . . . . . . . . . . Drone Launches 9 | . . . . . . . . . . . . . . . . . 3 . . . . . . . . . . . . . 6 . Drone Recoveries 2 | . . . . . . . . . . . . . . . . . 1 . . . . . . . . . . . . . 1 . Exploration | -11 -10 -10 -8 -8 -8 -8 -8 -8 -7 -7 -7 -7 -6 -6 -6 -6 -5 -5 -4 -4 -4 -4 -4 -4 -3 -3 -3 -3 -3 -2 -2 -2 ------------- Run | Yrd Mat Sub Mat Gar Mat Gar Mat Gar Fac Was Fac Gar Fac Was Fac Gar Fac Gar Fac Was Fac Gar Fac Arm Res Gar Res Tes Gar Res Qua Sec Turns Passed 43302 | 330 900 2150 581 1015 858 860 951 1211 382 294 1569 529 1526 130 1512 1316 2499 2064 817 107 1031 1789 4035 2654 1318 1101 3024 1409 1234 1526 1516 1064 Spaces Moved 22051 | 83 396 1102 294 381 552 413 456 656 201 182 953 269 912 81 854 419 1259 778 461 78 638 624 1722 903 838 593 1613 948 696 1008 1069 619 Core . | . . . . . . . . . . . . . . . . . . . . . . . . . . . . . . . . . Treads 5042 | 23 396 870 . . . 13 456 73 . . . . . . . 368 38 125 . . . 567 1248 865 . . . . . . . . Legs 60 | 60 . . . . . . . . . . . . . . . . . . . . . . . . . . . . . . . . Wheels 16949 | . . 232 294 381 552 400 . 583 201 182 953 269 912 81 854 51 1221 653 461 78 638 57 474 38 838 593 1613 948 696 1008 1069 619 Hover . | . . . . . . . . . . . . . . . . . . . . . . . . . . . . . . . . . Flight . | . . . . . . . . . . . . . . . . . . . . . . . . . . . . . . . . . Fastest Speed 104 | 120 160 115 120 130 130 130 162 130 130 130 120 120 120 130 121 150 135 135 120 120 120 120 120 135 135 137 118 104 124 104 104 104 Average Speed 150 | 131 160 165 159 155 130 131 162 134 145 143 141 138 131 130 130 229 146 176 120 120 125 230 194 240 136 137 133 120 124 123 118 116 Slowest Speed 330 | 160 160 240 170 170 130 245 162 162 160 220 145 150 150 130 150 240 245 330 120 120 135 320 255 320 158 137 153 124 125 125 124 124 Overloaded Moves . | . . . . . . . . . . . . . . . . . . . . . . . . . . . . . . . . . Propulsion Burnouts . | . . . . . . . . . . . . . . . . . . . . . . . . . . . . . . . . . Robots Hopped . | . . . . . . . . . . . . . . . . . . . . . . . . . . . . . . . . . Potential Cave-ins 26 | . . 4 . . . . 3 . . . . . . . . 2 . . . . . . 5 . . . . 9 3 . . . Cave-ins Triggered 2 | . . 1 . . . . . . . . . . . . . 1 . . . . . . . . . . . . . . . . Teleports 2 | . . . . . . . . . . . . . . . . . . . . . . . . . . . . . . . 2 . Exploration Rate (%) 54 | 5 50 65 25 56 58 50 56 91 10 90 37 43 38 75 32 84 40 86 19 74 25 92 57 56 30 76 42 89 90 33 95 35 Regions Visited 32 Branch Regions 5 Pre-discovered Areas 2 | . 1 1 . . . . . . . . . . . . . . . . . . . . . . . . . . . . . . Known Exits Taken 13 | . . . 1 . 1 . 1 . . . 1 . . . 1 . 1 . . . 1 . 1 1 1 . 1 1 . 1 . . Unknown Exits Taken 4 | 1 1 1 . . . . . . . . . . . . . . . . . . . . . . . . . . . . 1 . Scrap Searched 13 | . . 13 . . . . . . . . . . . . . . . . . . . . . . . . . . . . . . Spaces Dug 122 | . . 7 . 5 1 3 . . . . . 1 1 . 4 6 7 5 2 . 3 . 17 8 4 11 11 13 2 2 3 6 Terrain Destroyed 1406 | . . 49 13 92 1 14 108 70 3 . 42 2 15 30 38 30 166 27 66 . 51 15 76 45 25 40 47 103 47 71 52 68 Melee 15 | . . . . 5 1 3 . . . . . 1 . . . 1 4 . . . . . . . . . . . . . . . Projectile 460 | . . 18 . . . . . . 3 . 1 1 15 . 24 23 55 21 10 . 11 15 50 31 18 27 47 32 17 14 9 18 AOE 928 | . . 31 13 87 . 11 108 70 . . 41 . . 30 14 6 107 6 56 . 40 . 26 14 7 13 . 71 27 57 43 50 Terrain Rammed . | . . . . . . . . . . . . . . . . . . . . . . . . . . . . . . . . . Walls Destroyed . | . . . . . . . . . . . . . . . . . . . . . . . . . . . . . . . . . Machines Disabled . | . . . . . . . . . . . . . . . . . . . . . . . . . . . . . . . . . Actions | -11 -10 -10 -8 -8 -8 -8 -8 -8 -7 -7 -7 -7 -6 -6 -6 -6 -5 -5 -4 -4 -4 -4 -4 -4 -3 -3 -3 -3 -3 -2 -2 -2 --------- Run | Yrd Mat Sub Mat Gar Mat Gar Mat Gar Fac Was Fac Gar Fac Was Fac Gar Fac Gar Fac Was Fac Gar Fac Arm Res Gar Res Tes Gar Res Qua Sec Total 29194 | 215 592 1267 358 584 628 571 558 880 258 210 1089 377 1099 97 1125 614 1701 1243 688 91 826 862 2207 1252 992 826 2403 1172 1019 1265 1273 852 Wait 2573 | 70 135 18 14 43 20 39 30 86 28 12 34 11 44 6 97 14 182 180 137 7 107 57 130 108 39 35 499 73 61 96 73 88 Move 22028 | 82 395 1101 293 380 552 412 456 655 201 181 953 268 912 80 854 417 1259 777 461 77 638 623 1721 902 838 592 1612 947 695 1007 1068 619 Hop . | . . . . . . . . . . . . . . . . . . . . . . . . . . . . . . . . . Pick Up 344 | . 11 9 10 3 7 10 2 15 4 6 4 6 9 . 17 11 25 19 13 . 3 9 32 20 8 6 22 12 18 13 11 9 Fast Attach 237 | 1 2 2 2 1 . 4 . 7 1 3 6 . 7 . 8 6 15 14 . 1 9 8 30 20 7 6 13 9 21 19 12 3 Attach 168 | 2 . 8 5 2 . 3 1 10 2 . 2 1 8 . 18 6 15 9 9 . 4 2 18 8 3 1 5 3 8 7 4 4 Detach 37 | . . . . . . 1 . . 1 1 . . 1 . 3 2 5 3 2 . 2 2 3 3 . . . 1 2 3 2 . Swap 368 | 1 7 15 6 26 9 20 18 11 4 2 23 7 18 1 20 9 17 18 5 . 8 14 23 15 7 6 17 8 8 10 9 6 Drop 420 | 3 3 4 5 3 11 14 2 13 . 3 11 4 7 . 20 14 26 21 14 . 5 15 49 33 11 11 20 17 34 22 17 8 Fire 2611 | 56 37 110 23 103 25 48 44 54 11 2 43 28 89 10 84 89 141 167 46 6 47 122 187 140 76 106 201 99 145 86 74 112 Melee 80 | . . . . 14 3 15 2 2 6 . . 2 . . . 32 4 . . . . . . . . . . . . . . . Ram 5 | . . . . . 1 . . . . . 1 . . . . . . . . . . . 1 . . . 2 . . . . . Kick . | . . . . . . . . . . . . . . . . . . . . . . . . . . . . . . . . . Crush 6 | . 2 . . . . . . . . . . . . . . . . . . . . . 4 . . . . . . . . . Escape Stasis 231 | . . . . 8 . . . 24 . . 8 48 . . . 13 8 22 . . . 6 . . . 62 8 . 24 . . . Rewire 36 | . . . . . . . 1 1 . . 1 . 1 . . . 1 12 1 . 1 2 3 . 1 1 1 3 2 1 1 2 Trap 4 | . . . . . . 3 1 . . . . . . . . . . . . . . . . . . . . . . . . . Miscellaneous 46 | . . . . 1 . 2 1 2 . . 3 2 3 . 4 1 3 1 . . 2 2 6 3 2 . 3 . 1 1 2 1 Route ------- -11/Scrapyard -10/Materials (discovered 2 exits: [*Mat] / *Sub) -10/Subcaves (discovered 2 exits: *Mat / [*Rec]) -8/Materials -8/Garrison (discovered 3 exits: *Mat x3) -8/Materials (discovered 2 exits: *Fac / Gar) -8/Garrison (discovered 4 exits: *Fac x3 / *Mat) -8/Materials (discovered 2 exits: *Fac / Gar) -8/Garrison (discovered 3 exits: *Fac x3) -7/Factory -7/Waste -7/Factory (discovered 5 exits: *Fac x2 / Sto / [*Low] / Gar) -7/Garrison (discovered 3 exits: *Fac x3) -6/Factory (discovered 2 exits: *Low x2) -6/Waste -6/Factory (discovered 3 exits: *Fac x2 / Gar) -6/Garrison (discovered 3 exits: *Fac x3) -5/Factory (discovered 5 exits: *Fac x2 / *Upp x2 / Gar) -5/Garrison (discovered 3 exits: *Fac x3) -4/Factory (discovered 3 exits: Res x2 / Arm) -4/Waste -4/Factory (discovered 2 exits: *Upp / Gar) -4/Garrison (discovered 3 exits: *Fac x3) -4/Factory (discovered 7 exits: *Res x4 / *Upp x2 / *Arm) -4/Armory (discovered 3 exits: *Res x2 / [*Lab]) -3/Research (discovered 2 exits: *Res / Gar) -3/Garrison (discovered 3 exits: *Res x3) -3/Research (discovered 5 exits: *Res x3 / *Tes x2) -3/Testing (discovered 2 exits: *Res / Gar) -3/Garrison (discovered 3 exits: *Res x3) -2/Research (discovered 4 exits: *Acc x2 / *Qua x2) -2/Quarantine (discovered 4 exits: *Acc / *Sec / Gar / [*Frg]) -2/Section 7 (discovered 1 exit: Acc) History --------- Turn | Location | Event 15 | -11/Scrapyard | Discovered new exit (range 3) 331 | -11/Scrapyard | Entered Materials 332 | -10/Materials | Build established: Mutant 387 | -10/Materials | Central database locked down 551 | -10/Materials | Discovered new exit (range 7) 831 | -10/Materials | Derelicts attacked the area 1215 | -10/Materials | Discovered new exit (range 5) 1223 | -10/Materials | Prayed at D.C.S.S. Altar Unit 1231 | -10/Materials | Entered Subcaves 1232 | -10/Subcaves | Approached by a straggling Scientist 1239 | -10/Subcaves | Learned location of Zion (-6) 1264 | -10/Subcaves | A swath of the cavern ceiling suddenly collapsed 1503 | -10/Subcaves | Ambushed by Subdweller buried in earth 1633 | -10/Subcaves | Heat dissipation permanently improved by X0-1V1 (+15; -75 max core) 1792 | -10/Subcaves | X0-1V1 whisked you away to safety 1933 | -10/Subcaves | X0-1V1 sent hostile G-34 Mercenary (x3) 2026 | -10/Subcaves | Disturbed a concealed Subdweller 2152 | -10/Subcaves | Disturbed a concealed Subdweller 2161 | -10/Subcaves | Discovered new exit (range 8) 2237 | -10/Subcaves | Discovered new exit (range 15) 2250 | -10/Subcaves | Crushed by falling debris 2251 | -10/Subcaves | Core integrity fell below 50% 2281 | -10/Subcaves | Lost 4 parts (1p1u2w) 2617 | -10/Subcaves | Shifting Twisted Machinery released Battle Rifle 2618 | -10/Subcaves | Shifting Twisted Machinery released Battle Cannon 2924 | -10/Subcaves | Learned Materials emergency access door positions 2936 | -10/Subcaves | Visited Clippyterm 2943 | -10/Subcaves | Learned Research machine intel 3061 | -10/Subcaves | Visited 4L-MR0's lab 3064 | -10/Subcaves | X0-1V1 sent hostile G-34 Mercenary (x3) 3066 | -10/Subcaves | Core integrity fell below 20% 3381 | -10/Subcaves | Entered Materials 3381 | -8/Materials | Evolved 4 slots: Propulsion x1, Utility x2, Weapon x1 3471 | -8/Materials | KI resistance permanently improved by X0-1V1 (+10%; -100 max core) 3535 | -8/Materials | X0-1V1 added 0b10 threat records associated with you (minor) 3688 | -8/Materials | Build established: Tank 3749 | -8/Materials | Identified exit to Garrison 3823 | -8/Materials | X0-1V1 sent you to a vault 3962 | -8/Materials | Entered Garrison 3962 | -8/Garrison | Accompanied by 3 allies 3990 | -8/Garrison | Triggered checkpoint 4048 | -8/Garrison | Garrison Relay disabled 4135 | -8/Garrison | Installed Relay Interface Framework 4222 | -8/Garrison | Triggered checkpoint 4226 | -8/Garrison | Triggered checkpoint 4227 | -8/Garrison | Triggered checkpoint 4260 | -8/Garrison | Lost 3 allies 4270 | -8/Garrison | Triggered checkpoint 4291 | -8/Garrison | Destroyed 9 combat bots 4525 | -8/Garrison | Discovered new exit (range 11) 4562 | -8/Garrison | Triggered checkpoint 4572 | -8/Garrison | Discovered new exit (range 14) 4572 | -8/Garrison | Discovered new exit (range 64) 4572 | -8/Garrison | Discovered new exit (range 89) 4880 | -8/Garrison | Energy generation permanently improved by X0-1V1 (+10; -100 max core) 4973 | -8/Garrison | Phase Generator disabled 4977 | -8/Garrison | Entered Materials 5210 | -8/Materials | X0-1V1 sent you to a vault 5282 | -8/Materials | Repaired Hrd. Medium Armor Plating 5475 | -8/Materials | X0-1V1 announced a LAN party 5534 | -8/Materials | Discovered new exit (range 16) 5664 | -8/Materials | X0-1V1 activates XOMVISION 5821 | -8/Materials | Lost 3 allies 5835 | -8/Materials | Identified exit to Garrison 5835 | -8/Materials | Entered Garrison 5839 | -8/Garrison | Triggered checkpoint 5974 | -8/Garrison | Discovered new exit (range 3) 6135 | -8/Garrison | Triggered checkpoint 6158 | -8/Garrison | Triggered checkpoint 6186 | -8/Garrison | Core integrity fell below 50% 6234 | -8/Garrison | Destroyed 13 combat bots 6251 | -8/Garrison | Triggered checkpoint 6275 | -8/Garrison | Discovered new exit (range 60) 6275 | -8/Garrison | Discovered new exit (range 26) 6275 | -8/Garrison | Discovered new exit (range 68) 6275 | -8/Garrison | Discovered new exit (range 39) 6312 | -8/Garrison | System corruption reached 10% 6378 | -8/Garrison | X0-1V1 sent hostile H-55 Commando (x3) 6473 | -8/Garrison | Triggered checkpoint 6518 | -8/Garrison | Expanded RIF knowledge: Alert ID Control 6532 | -8/Garrison | Garrison Relay disabled 6609 | -8/Garrison | Triggered checkpoint 6651 | -8/Garrison | X0-1V1 mutated your Utility slot to Propulsion slot 6695 | -8/Garrison | Entered Materials 6985 | -8/Materials | Core integrity fell below 20% 7002 | -8/Materials | X0-1V1 vaporized surrounding terrain (radius 21) 7095 | -8/Materials | First assault squad dispatched 7163 | -8/Materials | X0-1V1 redirected Transport squads to designated parking area 7191 | -8/Materials | X0-1V1 rescued you from certain death 7308 | -8/Materials | Core integrity restored by X0-1V1 (+63) 7456 | -8/Materials | X0-1V1 announced a LAN party 7499 | -8/Materials | Central database locked down 7500 | -8/Materials | Discovered new exit (range 3) 7622 | -8/Materials | X0-1V1 sent allied B-75 Beast (x1) 7646 | -8/Materials | Identified exit to Garrison 7646 | -8/Materials | Entered Garrison 7646 | -8/Garrison | Accompanied by 1 ally 7706 | -8/Garrison | X0-1V1 destroyed Phase Generator 7706 | -8/Garrison | Phase Generator disabled 7956 | -8/Garrison | Destroyed 7 combat bots 8169 | -8/Garrison | Discovered new exit (range 12) 8286 | -8/Garrison | Triggered checkpoint 8317 | -8/Garrison | Build established: Scavenger-Tank 8352 | -8/Garrison | X0-1V1 mutated your Propulsion slot to Weapon slot 8383 | -8/Garrison | Expanded RIF knowledge: Signal Jamming 8397 | -8/Garrison | Identified exit to Factory 8397 | -8/Garrison | X0-1V1 revealed exit location to -7/Factory 8416 | -8/Garrison | Garrison Relay disabled 8506 | -8/Garrison | Discovered exit to Factory (range 12) 8536 | -8/Garrison | Expanded RIF knowledge: Autoassimilate 8656 | -8/Garrison | Garrison Relay disabled 8717 | -8/Garrison | Build established: Bothacker-Tank 8743 | -8/Garrison | X0-1V1 sent you into danger 8788 | -8/Garrison | Core integrity restored by X0-1V1 (+41) 8857 | -8/Garrison | Entered Factory 8857 | -7/Factory | Accompanied by 3 allies 8857 | -7/Factory | Evolved 2 slots: Utility x2 8940 | -7/Factory | X0-1V1 released a cloud of subatomizers 9008 | -7/Factory | Discovered new exit (range 8) 9036 | -7/Factory | X0-1V1 foreshadows a heat wave 9187 | -7/Factory | X0-1V1 rewrote Defender 3b IFF filter 9215 | -7/Factory | Fabricated Huge Storage Unit (x1) 9239 | -7/Factory | Ambient heat levels rising (+10) 9239 | -7/Factory | Sucked down chute 9239 | -7/Factory | Entered Waste 9239 | -7/Waste | Met up with 1 ally sucked down the chute earlier 9240 | -7/Waste | Joined by Warlord forces that had cleared the area 9289 | -7/Waste | 1 allies followed down the chute 9475 | -7/Waste | Discovered new exit (range 11) 9533 | -7/Waste | Entered Factory 9533 | -7/Factory | Accompanied by 21 allies 9669 | -7/Factory | Lost 4 allies 10141 | -7/Factory | Discovered new exit (range 13) 10315 | -7/Factory | Discovered new exit (range 6) 10574 | -7/Factory | Discovered new exit (range 10) 10733 | -7/Factory | First assault squad dispatched 10795 | -7/Factory | Identified exit to Storage 10795 | -7/Factory | X0-1V1 revealed exit location to -7/Storage 10928 | -7/Factory | Lost 7 allies 11046 | -7/Factory | Garrison activated, responded to threat 11093 | -7/Factory | Identified exit to Garrison 11102 | -7/Factory | Entered Garrison 11102 | -7/Garrison | Accompanied by 7 allies 11206 | -7/Garrison | Expanded RIF knowledge: Zone Cloak 11263 | -7/Garrison | Triggered checkpoint 11265 | -7/Garrison | Triggered checkpoint 11279 | -7/Garrison | Lost 3 allies 11299 | -7/Garrison | Discovered new exit (range 27) 11299 | -7/Garrison | Discovered new exit (range 56) 11299 | -7/Garrison | Discovered new exit (range 45) 11312 | -7/Garrison | X0-1V1 mutated your Propulsion slot to Utility slot 11373 | -7/Garrison | Expanded RIF knowledge: Coupler Efficiency 11522 | -7/Garrison | Build established: Botlord-Tank 11540 | -7/Garrison | Triggered checkpoint 11571 | -7/Garrison | Garrison Relay disabled 11576 | -7/Garrison | Lost 3 allies 11631 | -7/Garrison | Entered Factory 11631 | -6/Factory | Evolved 2 slots: Propulsion x1, Utility x1 11707 | -6/Factory | Identified exit to Lower Caves 11889 | -6/Factory | Found Unknown Device 11905 | -6/Factory | X0-1V1 announced a LAN party 12854 | -6/Factory | Spotted B-75 Beast 12869 | -6/Factory | Destroyed B-75 Beast 12992 | -6/Factory | Lost 3 allies 13002 | -6/Factory | Build established: Botlord-Gunner 13157 | -6/Factory | Sucked down chute 13157 | -6/Factory | Entered Waste 13172 | -6/Waste | EMP discharged 13187 | -6/Waste | Spotted C-40 Crusher 13191 | -6/Waste | Spotted C-40 Crusher 13200 | -6/Waste | Spotted C-40 Crusher 13204 | -6/Waste | Spotted C-40 Crusher 13215 | -6/Waste | X0-1V1 sent allied H-71 Marshal (x1) 13243 | -6/Waste | Spotted C-40 Crusher 13261 | -6/Waste | Spotted C-40 Crusher 13272 | -6/Waste | EMP discharged 13272 | -6/Waste | System corruption reached 10% 13273 | -6/Waste | Discovered new exit (range 10) 13287 | -6/Waste | Entered Factory 13287 | -6/Factory | Accompanied by 1 ally 13305 | -6/Factory | Build established: Botlord-Tank 13312 | -6/Factory | 6 allies followed down the chute 13544 | -6/Factory | X0-1V1 activates XOMVISION 13563 | -6/Factory | Repaired Arm. Huge Wheel+ 13573 | -6/Factory | Identified Launcher Loader 13736 | -6/Factory | Core integrity restored by X0-1V1 (+109) 13903 | -6/Factory | Fabricated M-28 Smith? 14105 | -6/Factory | X0-1V1 activates XOMVISION 14224 | -6/Factory | System Shield fried by hacking feedback 14242 | -6/Factory | Cargo convoy interrupted 14278 | -6/Factory | Found Prototype Device 14278 | -6/Factory | Identified Exp. Thermal Defense Suite 14324 | -6/Factory | Identified exit to Factory 14324 | -6/Factory | X0-1V1 revealed exit location to -5/Factory 14343 | -6/Factory | Lost 3 allies 14644 | -6/Factory | Discovered exit to Factory (range 15) 14644 | -6/Factory | Garrison activated, responded to threat 14684 | -6/Factory | Lost 7 allies 14722 | -6/Factory | X0-1V1 activates XOMVISION 14799 | -6/Factory | Identified exit to Garrison 14799 | -6/Factory | Entered Garrison 14825 | -6/Garrison | Expanded RIF knowledge: Code Merge 14982 | -6/Garrison | Discovered exit to Factory (range 36) 14982 | -6/Garrison | Discovered exit to Factory (range 64) 14982 | -6/Garrison | Discovered exit to Factory (range 73) 15023 | -6/Garrison | Garrison Relay disabled 15117 | -6/Garrison | Crushed by falling debris 15163 | -6/Garrison | Garrison Relay disabled 15276 | -6/Garrison | X0-1V1 sent allied Elite (x3) 15333 | -6/Garrison | X0-1V1 activates XOMVISION 15521 | -6/Garrison | Triggered checkpoint 15588 | -6/Garrison | Lost 8 allies 15764 | -6/Garrison | Lost 3 allies 15883 | -6/Garrison | Garrison Relay disabled 16022 | -6/Garrison | Core integrity restored by X0-1V1 (+92) 16026 | -6/Garrison | Garrison Relay disabled 16036 | -6/Garrison | Build established: Scavenger-Tank 16115 | -6/Garrison | Entered Factory 16115 | -5/Factory | Evolved 2 slots: Utility x2 16504 | -5/Factory | Fabricated Hvy. Mass Driver? 16905 | -5/Factory | X0-1V1 vaporized surrounding terrain (radius 24) 17227 | -5/Factory | System corruption reached 10% 17278 | -5/Factory | Lost 4 parts (2u2w) 17434 | -5/Factory | X0-1V1 mutated your Utility slot to Power slot 17651 | -5/Factory | Discovered new exit (range 6) 17673 | -5/Factory | Build established: Botlord-Tank 17794 | -5/Factory | X0-1V1 turns hostiles against one another 17872 | -5/Factory | Found Hvy. Reflective Plating 17952 | -5/Factory | Discovered new exit (range 4) 18124 | -5/Factory | X0-1V1 sent you to a vault 18126 | -5/Factory | P-70 Sage assimilated allied Sentinel 6d 18141 | -5/Factory | Discovered new exit (range 15) 18200 | -5/Factory | Found Tesla Bomb Launcher 18202 | -5/Factory | Found Tesla Bomb Launcher 18394 | -5/Factory | Lost 5 allies 18431 | -5/Factory | Identified exit to Upper Caves 18431 | -5/Factory | X0-1V1 revealed exit location to -5/Upper Caves 18614 | -5/Factory | Identified exit to Garrison 18614 | -5/Factory | Entered Garrison 18744 | -5/Garrison | Found Relay Coupler [Proto] 18747 | -5/Garrison | Found Relay Coupler [Proto] 18752 | -5/Garrison | Found Relay Coupler [Proto] 18755 | -5/Garrison | Found Relay Coupler [Proto] 18796 | -5/Garrison | Triggered checkpoint 18845 | -5/Garrison | Garrison Relay disabled 19015 | -5/Garrison | Triggered checkpoint 19059 | -5/Garrison | Heavy support dispatched to Factory 19122 | -5/Garrison | Lost 3 parts (3u) 19146 | -5/Garrison | H-XX Assembler disabled 19221 | -5/Garrison | Discovered new exit (range 12) 19243 | -5/Garrison | Expanded RIF knowledge: Robot Detection 19259 | -5/Garrison | Triggered checkpoint 19274 | -5/Garrison | X0-1V1 activates XOMVISION 19345 | -5/Garrison | Garrison Relay disabled 19395 | -5/Garrison | Expanded RIF knowledge: Hotswap 19504 | -5/Garrison | Triggered checkpoint 19707 | -5/Garrison | Triggered checkpoint 19799 | -5/Garrison | X0-1V1 vaporized surrounding terrain (radius 24) 19801 | -5/Garrison | Garrison Relay disabled 19811 | -5/Garrison | Garrison Relay disabled 19844 | -5/Garrison | Garrison Relay disabled 19846 | -5/Garrison | Garrison Relay disabled 19957 | -5/Garrison | Garrison Relay disabled 19992 | -5/Garrison | Discovered new exit (range 16) 20043 | -5/Garrison | Triggered checkpoint 20049 | -5/Garrison | X0-1V1 sent allied Fireman (x3) 20104 | -5/Garrison | Triggered checkpoint 20183 | -5/Garrison | Core integrity restored by X0-1V1 (+159) 20385 | -5/Garrison | Discovered new exit (range 10) 20426 | -5/Garrison | Triggered checkpoint 20441 | -5/Garrison | Garrison Relay disabled 20495 | -5/Garrison | X0-1V1 rewrote UO-IY1(i) IFF filter 20609 | -5/Garrison | Rewired Striker 20678 | -5/Garrison | Entered Factory 20678 | -4/Factory | Accompanied by 4 allies 20678 | -4/Factory | Evolved 2 slots: Propulsion x1, Utility x1 20689 | -4/Factory | Identified exit to Armory 20689 | -4/Factory | X0-1V1 revealed exit location to -4/Armory 20725 | -4/Factory | Watched by a mysterious "MATRIX" hacker 20928 | -4/Factory | First assault squad dispatched 21025 | -4/Factory | X0-1V1 activates XOMVISION 21043 | -4/Factory | Spotted B-86 Titan 21044 | -4/Factory | Identified exit to Research 21044 | -4/Factory | X0-1V1 revealed exit location to -3/Research 21049 | -4/Factory | P-70 Sage assimilated allied HQ-HVZ(i) 21101 | -4/Factory | Fabricated Hvy. Mass Driver? 21134 | -4/Factory | Destroyed B-86 Titan 21162 | -4/Factory | Lost 7 allies 21350 | -4/Factory | Fabricated M-28 Smith (x1) 21370 | -4/Factory | X0-1V1 revealed exit location to -3/Research 21495 | -4/Factory | Sucked down chute 21495 | -4/Factory | Entered Waste 21510 | -4/Waste | EMP discharged 21510 | -4/Waste | System corruption reached 10% 21521 | -4/Waste | Spotted C-40 Crusher 21529 | -4/Waste | Spotted C-40 Crusher 21535 | -4/Waste | Spotted C-40 Crusher 21540 | -4/Waste | Spotted C-40 Crusher 21548 | -4/Waste | Spotted C-40 Crusher 21555 | -4/Waste | 11 allies followed down the chute 21567 | -4/Waste | Spotted C-40 Crusher 21567 | -4/Waste | Allies destroyed C-40 Crusher 21576 | -4/Waste | Discovered new exit (range 16) 21602 | -4/Waste | Entered Factory 21749 | -4/Factory | Repaired Imp. Heavy Armor Plating 21762 | -4/Factory | X0-1V1 announced a LAN party 21798 | -4/Factory | Central database locked down 22058 | -4/Factory | X0-1V1 redirected Transport squads to designated parking area 22146 | -4/Factory | X0-1V1 rewrote Sentinel 7b IFF filter 22160 | -4/Factory | X0-1V1 sent you to a vault 22181 | -4/Factory | Found Prototype Slashing Weapon 22181 | -4/Factory | Identified Hvy. Scimitar of Distortion 22338 | -4/Factory | X0-1V1 activates XOMVISION 22536 | -4/Factory | Discovered new exit (range 6) 22633 | -4/Factory | Identified exit to Garrison 22633 | -4/Factory | Entered Garrison 22633 | -4/Garrison | Accompanied by 3 allies 22653 | -4/Garrison | Triggered checkpoint 22691 | -4/Garrison | Garrison Relay disabled 22782 | -4/Garrison | X0-1V1 rewrote Veteran 7h IFF filter 23209 | -4/Garrison | Triggered checkpoint 23212 | -4/Garrison | Triggered checkpoint 23213 | -4/Garrison | Spotted B-86 Titan 23236 | -4/Garrison | Destroyed B-86 Titan 23242 | -4/Garrison | Identified exit to Factory 23242 | -4/Garrison | X0-1V1 revealed exit location to -4/Factory 23281 | -4/Garrison | Lost 6 allies 23297 | -4/Garrison | Triggered checkpoint 23421 | -4/Garrison | Triggered checkpoint 23491 | -4/Garrison | Triggered checkpoint 23613 | -4/Garrison | Garrison Relay disabled 23669 | -4/Garrison | Discovered exit to Factory (range 8) 23695 | -4/Garrison | Expanded RIF knowledge: Autooverride 23900 | -4/Garrison | Triggered checkpoint 24073 | -4/Garrison | Triggered checkpoint 24082 | -4/Garrison | Garrison Relay disabled 24267 | -4/Garrison | Triggered checkpoint 24400 | -4/Garrison | Discovered exit to Factory (range 9) 24403 | -4/Garrison | Found embedded Infiltrators 24422 | -4/Garrison | Entered Factory 24422 | -4/Factory | Accompanied by 7 allies 24506 | -4/Factory | X0-1V1 rewrote Sentinel 7d IFF filter 24555 | -4/Factory | X0-1V1 sent you into danger 24665 | -4/Factory | Central database locked down 24978 | -4/Factory | X0-1V1 sent you into danger 25103 | -4/Factory | Lost 4 allies 25218 | -4/Factory | Lost 3 parts (2u1w) 25232 | -4/Factory | Lost 6 allies 25543 | -4/Factory | Lost 5 allies 25574 | -4/Factory | Discovered exit to Research (range 22) 25574 | -4/Factory | Discovered exit to Research (range 110) 25729 | -4/Factory | X0-1V1 announced a LAN party 25935 | -4/Factory | Discovered exit to Research (range 14) 26032 | -4/Factory | Spotted B-86 Titan 26187 | -4/Factory | X0-1V1 rewrote Assassin 7e IFF filter 26237 | -4/Factory | P-70 Sage assimilated allied Sentinel 7e 26874 | -4/Factory | Identified exit to Upper Caves 26926 | -4/Factory | X0-1V1 vaporized surrounding terrain (radius 24) 26944 | -4/Factory | Garrison activated, responded to threat 27110 | -4/Factory | Lost 3 allies 27193 | -4/Factory | X0-1V1 mutated your Weapon slot to Propulsion slot 27459 | -4/Factory | X0-1V1 rewrote Assassin 7i IFF filter 27535 | -4/Factory | Repaired Imp. Heavy Armor Plating 27913 | -4/Factory | Fabricated M-28 Smith? 27921 | -4/Factory | Discovered exit to Research (range 14) 27990 | -4/Factory | X0-1V1 added 0b10 threat records associated with you (major) 28027 | -4/Factory | X0-1V1 sent you to a vault 28402 | -4/Factory | P-70 Sage assimilated allied H-77 Assassin 28457 | -4/Factory | Entered Armory 28457 | -4/Armory | Accompanied by 12 allies 28458 | -4/Armory | Met VL-GR5, who suggested a friendly competition 28478 | -4/Armory | X0-1V1 mutated your Propulsion slot to Utility slot 28603 | -4/Armory | Found Unknown Launcher 28603 | -4/Armory | Identified Fusion Bomb Launcher 29125 | -4/Armory | Lost 5 allies 29186 | -4/Armory | Fabricated Adv. Remote Force Field? 29232 | -4/Armory | X0-1V1 destroyed Energy Cycler 29232 | -4/Armory | Energy Cycler disabled 29352 | -4/Armory | Lost 3 allies 29433 | -4/Armory | Fabricated Adv. Remote Force Field (x1) 29502 | -4/Armory | Fabricated Hvy. Mass Driver (x1) 29692 | -4/Armory | Spotted B-86 Titan 29717 | -4/Armory | Allies destroyed B-86 Titan 29771 | -4/Armory | Spotted Armor Guard 29771 | -4/Armory | Spotted Armor Guard 29778 | -4/Armory | Assimilated Armor Guard with formatsys_high 29797 | -4/Armory | X0-1V1 turns hostiles against one another 29823 | -4/Armory | Destroyed Armor Guard 29824 | -4/Armory | Lost 4 allies 29840 | -4/Armory | Found Corrupted Exp. Weapon Cycler 29877 | -4/Armory | X0-1V1 revealed exit location to -3/Research 30111 | -4/Armory | X0-1V1 whisked you away to safety 30482 | -4/Armory | X0-1V1 revealed exit location to -3/Research 30739 | -4/Armory | X0-1V1 upgraded hostiles (x1) 30908 | -4/Armory | Found Unknown Protection 30908 | -4/Armory | Identified Hvy. Reactive Plating 31008 | -4/Armory | Fabricated Arm. Huge Wheel (x2) 31087 | -4/Armory | Discovered new exit (range 3) 31111 | -4/Armory | Entered Research 31111 | -3/Research | Evolved 2 slots: Utility x2 31112 | -3/Research | Loaded intel: 104 machine locations 31146 | -3/Research | X0-1V1 activates XOMVISION 31884 | -3/Research | Found Prototype Device 31884 | -3/Research | Identified Exp. Thermal Shield 32156 | -3/Research | X0-1V1 redirected Transport squads to designated parking area 32157 | -3/Research | X0-1V1 vaporized surrounding terrain (radius 23) 32157 | -3/Research | Discovered new exit (range 14) 32409 | -3/Research | Identified exit to Garrison 32429 | -3/Research | Entered Garrison 32429 | -3/Garrison | Accompanied by 8 allies 32497 | -3/Garrison | Spotted B-86 Titan 32502 | -3/Garrison | Triggered checkpoint 32509 | -3/Garrison | X0-1V1 downgraded hostiles (x4) 32511 | -3/Garrison | Triggered checkpoint 32511 | -3/Garrison | Spotted B-75 Beast 32513 | -3/Garrison | Allies destroyed B-75 Beast 32527 | -3/Garrison | Triggered checkpoint 32530 | -3/Garrison | Triggered checkpoint 32565 | -3/Garrison | Lost 4 allies 32593 | -3/Garrison | Triggered checkpoint 32675 | -3/Garrison | Garrison Relay disabled 32861 | -3/Garrison | Triggered checkpoint 32903 | -3/Garrison | Lost 3 allies 33007 | -3/Garrison | Discovered new exit (range 8) 33022 | -3/Garrison | Expanded RIF knowledge: Threat Obfuscation 33201 | -3/Garrison | Triggered checkpoint 33226 | -3/Garrison | Garrison Relay disabled 33268 | -3/Garrison | Discovered new exit (range 9) 33387 | -3/Garrison | Triggered checkpoint 33415 | -3/Garrison | Garrison Relay disabled 33463 | -3/Garrison | Discovered new exit (range 17) 33530 | -3/Garrison | Entered Research 33530 | -3/Research | Accompanied by 8 allies 33700 | -3/Research | Spotted B-86 Titan 33719 | -3/Research | Allies destroyed B-86 Titan 33820 | -3/Research | X0-1V1 activates XOMVISION 33998 | -3/Research | Found Exp. Targeting Computer 34121 | -3/Research | Discovered new exit (range 13) 34126 | -3/Research | Identified exit to Testing 34472 | -3/Research | Spotted B-86 Titan 34477 | -3/Research | Destroyed B-86 Titan 34585 | -3/Research | X0-1V1 redirected Transport squads to designated parking area 34665 | -3/Research | Found Gamma Bomb Array 34773 | -3/Research | Lost 6 allies 34807 | -3/Research | Discovered new exit (range 7) 34872 | -3/Research | X0-1V1 added 0b10 threat records associated with you (major) 34931 | -3/Research | Found Prototype Device 34931 | -3/Research | Identified Exp. ECM Suite 35458 | -3/Research | Discovered new exit (range 11) 35483 | -3/Research | X0-1V1 mutated your Utility slot to Weapon slot 35530 | -3/Research | First assault squad dispatched 35666 | -3/Research | X0-1V1 upgraded hostiles (x1) 35728 | -3/Research | Lost 3 allies 35737 | -3/Research | X0-1V1 mutated your Weapon slot to Utility slot 35818 | -3/Research | X0-1V1 added 0b10 threat records associated with you (considerable) 35876 | -3/Research | System corruption reached 10% 35883 | -3/Research | X0-1V1 mutated your Utility slot to Propulsion slot 36030 | -3/Research | Search patrols dispatched 36141 | -3/Research | Repaired Adv. Remote Force Field 36165 | -3/Research | X0-1V1 added 0b10 threat records associated with you (major) 36193 | -3/Research | Repaired Hvy. Reactive Plating 36197 | -3/Research | Discovered new exit (range 9) 36259 | -3/Research | X0-1V1 made a cryptic comment about sterilization and BL-4Z3 36280 | -3/Research | Search patrols dispatched 36312 | -3/Research | Sterilization system engaged 36312 | -3/Research | Non-combat units ordered to evacuate 36320 | -3/Research | Repaired Graviton Reactor 36323 | -3/Research | X0-1V1 rewrote Warden 8f IFF filter 36362 | -3/Research | Targeted by mysterious "MATRIX" hacker 36393 | -3/Research | Fabricated Multitool (x1) 36398 | -3/Research | X0-1V1 added 0b10 threat records associated with you (major) 36412 | -3/Research | Combat units ordered to evacuate 36504 | -3/Research | X0-1V1 activates XOMVISION 36554 | -3/Research | Entered Testing 36554 | -3/Testing | Accompanied by 6 allies 36568 | -3/Testing | Identified exit to Garrison 36592 | -3/Testing | Spotted PD-MXFKNKBT5W 36645 | -3/Testing | Lost 7 allies 36778 | -3/Testing | Fabricated Centrium Medium Armor Plating? 36848 | -3/Testing | Spotted Striker 37102 | -3/Testing | Discovered new exit (range 12) 37197 | -3/Testing | X0-1V1 activates XOMVISION 37446 | -3/Testing | Found Prototype Energy Cannon 37446 | -3/Testing | Identified Cld. Nova Cannon 37483 | -3/Testing | X0-1V1 sent allied Thug (x4) 37574 | -3/Testing | Found Prototype Ballistic Cannon 37574 | -3/Testing | Identified Perforator 37640 | -3/Testing | Found Prototype Hackware 37741 | -3/Testing | Identified Exp. Hacking Suite 37933 | -3/Testing | Found Prototype Protection 37933 | -3/Testing | Identified Med. Regenerative Plating 37938 | -3/Testing | Found Prototype Protection 37963 | -3/Testing | Entered Garrison 37963 | -3/Garrison | Accompanied by 4 allies 38053 | -3/Garrison | Triggered checkpoint 38084 | -3/Garrison | Garrison Relay disabled 38131 | -3/Garrison | Discovered new exit (range 81) 38131 | -3/Garrison | Discovered new exit (range 46) 38131 | -3/Garrison | Discovered new exit (range 58) 38205 | -3/Garrison | Triggered checkpoint 38206 | -3/Garrison | Spotted B-86 Titan 38208 | -3/Garrison | Assimilated Titan 8a with formatsys_high 38210 | -3/Garrison | Triggered checkpoint 38252 | -3/Garrison | X0-1V1 sent allied B-60 Warrior (x3) 38302 | -3/Garrison | Lost 9 allies 38319 | -3/Garrison | Destroyed 7 combat bots 38328 | -3/Garrison | Rescued a captive Derelict 38330 | -3/Garrison | Rescued a captive Derelict 38354 | -3/Garrison | X0-1V1 activates XOMVISION 38367 | -3/Garrison | Triggered checkpoint 38394 | -3/Garrison | X0-1V1 mutated your Propulsion slot to Weapon slot 38406 | -3/Garrison | Garrison Relay disabled 38427 | -3/Garrison | Garrison Relay disabled 38505 | -3/Garrison | Triggered checkpoint 38507 | -3/Garrison | Identified SHELL Armor 38594 | -3/Garrison | Triggered checkpoint 38618 | -3/Garrison | Garrison Relay disabled 38810 | -3/Garrison | Garrison Relay disabled 38817 | -3/Garrison | Build established: Botlord-Gunner 38817 | -3/Garrison | System corruption reached 30% 38829 | -3/Garrison | Triggered checkpoint 38868 | -3/Garrison | Expanded RIF knowledge: Code Merge 38905 | -3/Garrison | Spotted Executioner 38955 | -3/Garrison | Spotted Executioner 38958 | -3/Garrison | Destroyed Executioner 38960 | -3/Garrison | Destroyed Executioner 38969 | -3/Garrison | Lost 5 allies 38988 | -3/Garrison | Found Prototype Processor 38988 | -3/Garrison | Identified Exp. Core Analyzer 38995 | -3/Garrison | Found Prototype Device 38995 | -3/Garrison | Identified Adv. Kinecellerator 39007 | -3/Garrison | Found Exp. Core Analyzer 39027 | -3/Garrison | X0-1V1 vaporized surrounding terrain (radius 20) 39197 | -3/Garrison | Entered Research 39197 | -2/Research | Accompanied by 5 allies 39197 | -2/Research | Evolved 2 slots: Utility x2 39216 | -2/Research | X0-1V1 mutated your Weapon slot to Propulsion slot 39447 | -2/Research | First assault squad dispatched 39495 | -2/Research | Discovered new exit (range 10) 39592 | -2/Research | Identified exit to Access 39654 | -2/Research | Identified exit to Quarantine 39785 | -2/Research | X0-1V1 vaporized surrounding terrain (radius 16) 39792 | -2/Research | Spotted B-90 Cyclops 39800 | -2/Research | Destroyed B-90 Cyclops 39839 | -2/Research | Lost 3 allies 40051 | -2/Research | Found Fusion Bomb Launcher 40116 | -2/Research | Discovered exit to Access (range 8) 40232 | -2/Research | P-80 Master assimilated allied Artificer 9a 40364 | -2/Research | X0-1V1 redirected Transport squads to designated parking area 40723 | -2/Research | Entered Quarantine 40723 | -2/Quarantine | Accompanied by 5 allies 40743 | -2/Quarantine | X0-1V1 sent you to a vault 40747 | -2/Quarantine | Found Unknown Device 40747 | -2/Quarantine | Identified GOLEM Unit 40850 | -2/Quarantine | Lost 3 allies 40969 | -2/Quarantine | Identified exit to Garrison 40991 | -2/Quarantine | Discovered exit to Access (range 13) 41020 | -2/Quarantine | Cryocooling Duct disabled 41035 | -2/Quarantine | Ambient heat levels rising (+20) 41035 | -2/Quarantine | Non-combat units ordered to evacuate 41043 | -2/Quarantine | P-80 Master assimilated allied Director 9a 41253 | -2/Quarantine | Found Alien Artifact 41417 | -2/Quarantine | Found Alien Artifact 41547 | -2/Quarantine | X0-1V1 sent hostile Thug (x2) 41795 | -2/Quarantine | X0-1V1 activates XOMVISION 41881 | -2/Quarantine | Found Alien Artifact 41884 | -2/Quarantine | Found Alien Artifact 41886 | -2/Quarantine | Found Alien Artifact 41887 | -2/Quarantine | Identified Hpw. Transdimensional Reconstructor (x2) 41887 | -2/Quarantine | Warped through subspace 41920 | -2/Quarantine | X0-1V1 announced a LAN party 41956 | -2/Quarantine | Found Alien Artifact 41956 | -2/Quarantine | Identified Transdimensional Reconstructor (x2) 41956 | -2/Quarantine | Warped through subspace 42021 | -2/Quarantine | Found Alien Artifact 42021 | -2/Quarantine | Identified Dimensional Node Initializer 42021 | -2/Quarantine | Initialized slip node 42025 | -2/Quarantine | Found Dimensional Node Initializer 42030 | -2/Quarantine | Identified Phase Redirector 42085 | -2/Quarantine | Spotted Fortress 42089 | -2/Quarantine | Assimilated Fortress with formatsys_high 42208 | -2/Quarantine | Discovered new exit (range 6) 42208 | -2/Quarantine | Discovered new exit (range 6) 42239 | -2/Quarantine | Entered Section 7 42239 | -2/Section 7 | Accompanied by 1 ally 42258 | -2/Section 7 | X0-1V1 added 0b10 threat records associated with you (minor) 42285 | -2/Section 7 | Identified Core Reset Matrix 42309 | -2/Section 7 | Found Alien Artifact 42331 | -2/Section 7 | Identified Integrity Redistributor 42339 | -2/Section 7 | X0-1V1 added 0b10 threat records associated with you (minor) 42420 | -2/Section 7 | Garrison activated, responded to threat 42474 | -2/Section 7 | X0-1V1 rewrote Warden 9e IFF filter 42603 | -2/Section 7 | Found Alien Artifact 42709 | -2/Section 7 | Identified Integrated Reactor 42709 | -2/Section 7 | Installed Integrated Reactor, increased core energy generation (+10) 42810 | -2/Section 7 | System corruption reached 10% 42812 | -2/Section 7 | P-80 Master assimilated allied Warden 9e 42814 | -2/Section 7 | P-80 Master assimilated allied Artificer 9b 43093 | -2/Section 7 | Spotted S7 Guard 43111 | -2/Section 7 | Spotted B-90 Cyclops 43114 | -2/Section 7 | Destroyed S7 Guard 43129 | -2/Section 7 | Spotted S7 Guard 43137 | -2/Section 7 | Assimilated S7 Guard with formatsys_high 43140 | -2/Section 7 | Destroyed B-90 Cyclops 43161 | -2/Section 7 | Found Alien Artifact 43185 | -2/Section 7 | X0-1V1 revealed exit location to -1/Access 43239 | -2/Section 7 | First assault squad dispatched 43256 | -2/Section 7 | Spotted Alpha 7 43259 | -2/Section 7 | Spotted Alpha 7 43281 | -2/Section 7 | Scanned by Researcher 43282 | -2/Section 7 | Intercept squad dispatched 43294 | -2/Section 7 | Spotted Tracker 43296 | -2/Section 7 | Spotted Tracker 43303 | -2/Section 7 | Self-destructed Last Messages --------------- 43292_ Slug penetrates Wall. 43292_ Acquired Adv. Matter Compressor. 43292_ K-01 Serf collects debris. 43293_ Wall collapses. 43293_ Gamma Bomb intercepted. 43293_ G-73 Enforcer destroyed. 43293_ K-01 Serf collects debris. 43295_ Penetrated by Slug. 43295_ Slug penetrates Earth. 43295_ Gamma Bomb intercepted. 43296_ K-01 Serf collects debris. 43297_ Gamma Bomb intercepted. 43297_ K-01 Serf collects debris. 43298_ Slug penetrates Wall. 43298_ Slug penetrates Repair Station. 43299_ System corrupted: Matter fused (-7). 43299_ Gamma Bomb intercepted. 43300_ Relay Coupler [Proto] destroyed. 43301_ Slug penetrates Wall. 43301_ Gamma Bomb intercepted. Map ----- +----------------------------------------------------+ | ?????????????????????????????????????????????????? | | ?????????????????????????????????????????????????? | | ?????????????????????????????????????????????????? | | ?????????????????????????????????????????????????? | | ?????????????????????????????????????????????????? | | ?????????????????????????????????????????????????? | | ?????????????????????????????????????????????????? | | ?????????????????????????????????????????????????? | | ?????????????????????????????????????????????????? | | ?????????????????????????????????????????????????? | | ?????????????????????????????????????????????????? | | ????????????????????????????? ???????????????????? | | ????????????????????????????? = [????????????????? | | ????????????????????????????= % = ??????????????? | | ?????????????????????????? % %= #????????????? | | ??????????????????????####; =[ #????????????? | | ??????????????Y???????# ss%[ % ???????????? | | ??????????????????????# =!! ! ???????????? | | ??????????????????????# "" 7 | ??????????? | | ??????????????????????# " 7% ???????????? | | ??????????????????????# "T =!$!#????????????? | | ????????????##????????# % #????????????? | | ????????????# ??????# #????????????? | | ???????????## ????# ^ % #?????????????? | | ???????????# ??#*[=!* #??????????????? | | ????????????# #=[@% #??????????????? | | ????????????# ;*[%! #??????????????? | | ????????????# "" "" = #%=!==! #??????????????? | | ??????????????""R"" ?#]]]= " #??????????????? | | ???????????????"""" ??#]]A ^ """ #??????????????? | | ???????????????###???#;]]! """ #??????????????? | | ?????????????????????#; #??????????????? | | ?????????????########## ###????????????? | | ?????#########!##"""#"# ##???????????? | | % # #???????????? | | ?# h !h #???????????? | | ?# h% % #???????????? | | ?# % ###???????????? | | ?######## ######### ! ##???????????? | | ????????# ???????# # #???????????? | | #??????# ???????# ! ###???????????? | | #??????# ????????### #= % # ##???????????? | | #??????# ?????????# # = #???????????? | | #??????# ?????????## # / # ##???????????? | | #??????# ???????????#" #?#????????????? | | #??????# ???????????#"" + #??????????????? | | #??????# ????????????#" %# #??????????????? | | ????????# ????????????#"" " # #??????????????? | | ??????????????????????#"" "! #### "#?????????????? | | ??????????????????????#""""%!#??# ##?????????????? | +----------------------------------------------------+ Best States ------------- Heat Dissipation 132 Coolant Potential 120 Energy Generation 81 Energy Capacity 2540 Matter Stores 950 Matter Capacity 1000 Sight Range 22 Terrain Scan Density 10 Cloak Strength 4 Armor Coverage 1200 Resistance: KI 50 Resistance: TH 30 Resistance: EX 25 Resistance: EM 28 Core Shielding 30 Weapon Cycling 30 Phase Shifting 15 Evasion (%) 55 Targeting Accuracy 12 Target Analysis 8 Core Analysis 8 Armor Integrity Analysis 40 Recoil Reduction 5 Energy Filtering 50 Salvage Targeting 5 Offensive Hacking 16 Defensive Hacking 14 Relay Coupler Types 7 Relay Coupler Value 379 Authchip Count 3 Item Schematics ----------------- Huge Storage Unit | -8/Materials | Hacked Multitool | -8/Materials | Scanalyzed Arm. Huge Wheel | -8/Materials | Scanalyzed Force Field | -6/Factory | Hacked Hvy. Mass Driver | -6/Factory | Hacked Graviton Reactor | -4/Factory | Scanalyzed Adv. Remote Force Field | -4/Armory | Hacked Cld. Phase Gun | -3/Testing | Archive Exp. Signal Interpreter | -3/Testing | Archive Electron Diverter | -3/Testing | Archive Enh. Fission Core | -3/Testing | Archive Exp. Focal Shield | -3/Testing | Archive Hvy. Gatling Laser | -3/Testing | Archive Cld. Gravmag System | -3/Testing | Archive Adv. KE Penetrator | -3/Testing | Archive Exp. Coolant Injector | -3/Testing | Archive Exp. ECM Suite | -3/Testing | Archive Diametric Drive | -3/Testing | Archive Exp. Hacking Suite | -3/Testing | Archive Adv. Energy Well | -3/Testing | Archive Stealth Drone Bay | -3/Testing | Archive Helical Railgun | -2/Section 7 | Archive Kinetic Spear | -2/Section 7 | Archive Imp. Matter Compressor | -2/Section 7 | Archive Thermal Defense Suite | -2/Section 7 | Archive Exp. Matter Compressor | -2/Section 7 | Archive Com. Particle Reactor | -2/Section 7 | Archive Cld. Nuclear Pulse Thruster | -2/Section 7 | Archive Centrium Heavy Treads | -2/Section 7 | Archive Nanosword | -2/Section 7 | Archive Robot Schematics ------------------ M-28 Smith | -8/Materials | Hacked G-67 Veteran | -3/Testing | Archive X-82 Rainmaker | -3/Testing | Archive B-74 Champion | -3/Testing | Archive O-32 Director | -3/Testing | Archive K-01 Serf | -3/Testing | Archive T-07 Excavator | -2/Section 7 | Archive H-88 Terminator | -2/Section 7 | Archive R-06 Scavenger | -2/Section 7 | Archive Fabricated ------------ Huge Storage Unit | x1 | -7/Factory M-28 Smith | x1 | -6/Factory | Authchip Hvy. Mass Driver | x1 | -5/Factory Hvy. Mass Driver | x1 | -4/Factory M-28 Smith | x1 | -4/Factory M-28 Smith | x1 | -4/Factory Adv. Remote Force Field | x1 | -4/Armory Adv. Remote Force Field | x1 | -4/Armory | Authchip Hvy. Mass Driver | x1 | -4/Armory | Authchip Arm. Huge Wheel | x2 | -4/Armory Multitool | x1 | -3/Research Centrium Medium Armor Plating | x1 | -3/Testing | Preloaded Repaired ---------- Hrd. Medium Armor Plating | 15% | -8/Materials Arm. Huge Wheel | 1% | -6/Factory Imp. Heavy Armor Plating | 50% | -4/Factory Imp. Heavy Armor Plating | 18% | -4/Factory Adv. Remote Force Field | 39% | -3/Research Hvy. Reactive Plating | 41% | -3/Research Graviton Reactor | 50% | -3/Research Studied --------- Missile Launcher | -8/Materials | Hacked Arm. Huge Wheel | -7/Factory | Hacked Com. Wheel | -7/Factory | Hacked Remote Datajack | -6/Factory | Hacked Wheel | -6/Factory | Hacked Imp. Remote Datajack | -4/Factory | Hacked Hvy. Mass Driver | -4/Factory | Hacked Centrium Wheel | -3/Research | Hacked Hvy. Linear Accelerator | -2/Research | Hacked Adv. Remote Datajack | -2/Quarantine | Hacked Alien Tech Used ----------------- High-powered Transdimensional Reconstructor Transdimensional Reconstructor Dimensional Node Initializer Phase Redirector Integrated Reactor Achievements -------------- Out Of My Way Challenges ------------ None Game ------ Seed SigixEncryptedAccelerator Manual? 0 Play Time 07:57:55 Cumulative 641.2 hours Start 2026.08.14 @ 00:48:40 End 2026.08.18 @ 22:30:23 Sessions 35 Manual Loads 0 Difficulty Rogue Special Mode None Game No. 567 Rogue 531 Adventurer 36 Explorer 0 Win Type - Total 8 Types 2/2/0/1/1/0/0/2/0/0 Lore% 85 Gallery% 74 Achievement% 68 Wizard Run 0 Options --------- Layout 2 ASCII 0 Keyboard 0 Movement Numpad Keybinds 0 Fullscreen 1 Font 48/Smallcaps Map View 50x44 Zoom Use 0% Tactical HUD 1 Map Filters NONE Filters NONE Steam 1 RUN: ae1e4528-d175-42b4-99f5-80cfed90648e